{"text_format":"3","workbook":"xlsx","n_sheets":8,"sheets":["Uputstvo","član 3","član 4","član 8","član 9","član 10","stampa","Sheet1"],"not_rendered":{"defined_names":4},"read":"whole","date_system":"1900"}

{"sheet":"Uputstvo","index":0,"n_rows":40,"n_cols":1,"rows_kept":40,"merged":[[3,0,7,8],[8,0,9,8],[10,0,13,8],[14,0,16,8],[17,0,19,8],[20,0,22,8],[23,0,25,7],[26,0,38,8],[39,0,42,8]]}
[]
["УПУТСТВО О НАЧИНУ РАДА СА ПОДАЦИМА"]
[]
["    Овај модел Одлуке о завршном рачуну буџета општине за 2015. годину у електронском облику састоји се од 6 радних табела. Имајући у виду да Модел Одлуке о завршном рачуну буџета није прописан, у пракси се могу јавити одступања од нашег предложеног модела. Такође ће се разликовати број функција и глава по појединим општинама, па смо у том циљу дали могућност подешавања текста у Основном моделу на начин како је описан у овом упутству. "]
[]
[]
[]
[]
["      Табела са називом \"stampa\" је Основни модел Одлуке за штампу, а осталих 5 табела су помоћне, које служе за попуњавање табела у Основом моделу. Називи помоћних табела одређени су тако да означавају део основне табеле који се попуњава помоћу тих помоћних табела (помоћна табела за: члан 3, члан 4, члан 8, члан 9. и члан 10. основног модела)."]
[]
["     Помоћна табела \"član 3\" служи за попуњавање података о оствареном буџетском суфициту, као и коригованом суфициту/дефициту из Биланса прихода и расхода (Образац 2). Табела има поља са формулама (на ред. броју 3. 4. и 5), која су заштићена и у која се не могу уносити подаци. Остала поља се попуњавају подацима. "]
[]
[]
[]
["     Помоћна табела \"član 4\" служи за попуњавање остварених података за рачун прихода и примања и расхода и издатака,као и за рачун финансирања. Подаци се уносе у колоне 3. и 4. Унети подаци у ову тавелу аутоматски се уписују на одговарајуће место у Основни модел, који је предложен у табели  \"stampa\"."]
[]
[]
["     Помоћна табела \"član 8\" служи за унос података о текућим приходима и примањима општине у члану 8. Основног модела. Подаци се у овој помоћној табели уносе у колоне 3. и 4, и то у бела поља. У осталим пољима се налазе формуле и та поља су заштићена."]
[]
[]
["     Помоћна табела \"član 9\" служи за унос података о текућим расходима и издацима буџета општине у члану 9. Основног модела. Подаци се у овој помоћној табели уносе у колоне 3. и 4, и то у бела поља. У осталим пољима се налазе формуле и та поља су заштићена."]
[]
[]
["     Помоћна табела \"član 10\" служи за унос података о  планираним и извршеним апропријацијама по буџетским корисницима - Посебни део одлуке о завршном рачуну буџета општине за 2014. годину."]
[]
[]
["     Основни модел који се налази у табели \"stampa\" представља наш предложени модел Одлуке о завршном рачуну буџета општине за 2014. годину. У овој табели се преписују подаци из помоћних табела које смо претходно навели. Због специфичности буџета општина, које ће довести до одступања од овог модела, поља у овој табели нису заштићена, што омогућује унос података у свим пољима табеле. Треба посебно обратити пажњу на део табеле у који се уписују подаци из помоћних табела и не уносити податке у тај део табеле Основног модела, јер ће се уносом података обрисати формуле које везују поља из Основног модела са пољима из помоћних табела. Посебно скрећемо пажњу на члан 10.  Основног модела у којем је предложена анализа извршења капиталних пројеката у 2014. години. Наиме, планирање капиталних пројеката у општем делу буџета локалних власти је новина од 2013. године, па је неопходно и у Одлуци о завршном рачуну буџета општине за 2014. годину да се изврши анализа извршења пројеката који су планирани у општем делу буџета за 2014. годину."]
{"$rows_empty":12}
["     Скрећемо пажњу да је штампа Основног модела подешена за папир формата А4. Уколико се додају нови редови, или бришу постојећи, може доћи до померања текста, па је пре штампе неопходно извршити подешавање формата. Такође, треба обратити пажњу приликом додавања нових података да се изврши подешавање и збирних података. "]

{"sheet":"član 3","index":1,"n_rows":14,"n_cols":2,"rows_kept":14}
["1. Укупно остварени приходи и примања по основу продаје нефинансијске имовине",374096]
["2. Укупно извршени расходи и издаци за набавку нефинансијске имовине",372402]
["3. Вишак прихода – буџетски суфицит (ред. бр. 1 – ред. бр. 2)",{"$f":"B1-B2","v":1694}]
["Кориговање вишка прихода – буџетски суфицит:"]
["  – део нераспоређеног вишка прихода и примања из ранијих година који је коришћен за покриће расхода и издатака текуће године"]
["  – део пренетих неутрошених средстава из ранијих година коришћен за покриће расхода и издатака текуће године"]
["  – износ расхода и издатака за нефинансијску имовину, финансираних из кредита"]
["  – износ приватизационих примања коришћен за покриће расхода и издатака текуће године",6720]
["  – утрошена средства текућих прихода и примања од продаје нефинансијске имовине за отплату обавеза по кредитима",3343]
["  – утрошена средства текућих прихода и примања од продаје нефинансијске имовине за набавку финансијске имовине"]
["4. Кориговани вишак прихода – суфицит",{"$f":"+B3+B5+B6+B7+B8-B9-B10","v":5071}]
["5.Вишак прихода и примања – суфицит (за пренос у наредну годину)",{"$f":"+B13+B14","v":5071}]
["- Део вишка прихода и примања наменски опредељен за наредну годину"]
["- Нераспоређени део вишка прихода и примања за пренос у наредну годину",5071]

{"sheet":"član 4","index":2,"n_rows":45,"n_cols":5,"rows_kept":45,"merged":[[0,0,1,0],[0,1,1,1],[0,2,1,2],[0,3,1,3],[0,4,1,4]]}
[null,"Економска класификација","Планирано ","Остварено","%    Остварено/ План"]
[]
[1,2,3,4,5]
["А. РАЧУН ПРИХОДА И ПРИМАЊА, РАСХОДА И ИЗДАТАКА БУЏЕТА ОПШТИНЕ"]
["I. УКУПНИ ПРИХОДИ И ПРИМАЊА",null,{"$f":"C6+C17","v":0},{"$f":"D6+D17","v":359109},{"$f":"IF(OR(ISBLANK(C5),C5=0),\"\",D5/C5)","v":""}]
["Текући приходи:",7,{"$f":"C7+C11+C14+C15+C16+C18","v":0},{"$f":"D7+D11+D14+D15+D16+D18","v":359109},{"$f":"IF(OR(ISBLANK(C6),C6=0),\"\",D6/C6)","v":""}]
["1. Порески приходи",71,{"$f":"SUM(C8:C10)","v":0},{"$f":"SUM(D8:D10)","v":139728},""]
["1.1. Порез на доходак, добит и капиталне добитке",711,null,93059,""]
["1.2. Порез на добра и услуге",714,null,null,""]
["1.3. Остали порески приходи","712+713+716+719",null,46669,""]
["2. Непорески приходи, од чега:",74,{"$f":"SUM(C12:C13)","v":0},{"$f":"SUM(D12:D13)","v":7076},""]
["– наплаћене камате",7411,null,353,""]
["– накнада за коришћење простора и грађевинског земљишта",7415,null,6723,""]
["3. Меморандумске ставке за рефундацију расхода из претходне године",772,null,299,""]
["4. Донације","731+732",null,null,""]
["5. Трансфери",733,null,212006,""]
["Примања од продаје нефинанисјске имовине",8,null,null,""]
["Сопствени приходи буџетских корисника",{"$nulls":3},""]
["II. УКУПНИ РАСХОДИ И ИЗДАЦИ",null,{"$f":"C20+C29","v":0},{"$f":"D20+D29","v":364828},""]
["Текући расходи:",4,{"$f":"SUM(C21:C28)","v":0},{"$f":"SUM(D21:D28)","v":340595},""]
["1. Расходи за запослене",41,null,96712,""]
["2. Коришћење услуга и роба ",42,null,134971,""]
["3. Отплата камата",44,null,696,""]
["4. Субвенције",45,null,17411,""]
["5. Издаци за социјалну заштиту",47,null,29472,""]
["6. Остали расходи","48+49",null,{"$f":"19499","v":19499},""]
["7. Текући трансфери и дотације","4631+4641",null,{"$f":"27982+11556","v":39538},""]
["8. Капитални трансфери и дотације","4632+4642",null,{"$f":"1016+1280","v":2296},""]
["Издаци за нефинансијску имовину",5,null,24233,""]
["III. БУЏЕТСКИ СУФИЦИТ (БУЏЕТСКИ ДЕФИЦИТ) (I–II)","(7+8) – (4+5)",{"$f":"C5-C19","v":0},{"$f":"D5-D19","v":-5719},""]
["IV. Издаци за набавку финансијске имовине",62,null,null,""]
["V. Отплата главнице",61,{"$f":"C33+C36","v":0},{"$f":"D33+D36","v":3343},""]
["1. Отплата главнице домаћим кредиторима",611,{"$f":"SUM(C34:C35)","v":0},{"$f":"SUM(D34:D35)","v":3343},""]
["1.1. Отплата главнице домаћим јавним финансијским институцијама и пословним банкама","6113 + 6114",null,3343,""]
["1.2. Отплата главнице осталим кредиторима","6111 + 6112 + 6115 + 6116 + 6117 + 6118 + 6119",null,null,""]
["2. Отплата главнице страним кредиторима",612,null,null,""]
["Б. УКУПНИ ФИСКАЛНИ ДЕФИЦИТ (III-IV-V)",null,{"$f":"C30-C31-C32","v":0},{"$f":"D30-D31-D32","v":-9062},""]
["В. РАЧУН ФИНАНСИРАЊА",{"$nulls":3},""]
["VI. Примања по основу продаје финансијске имовине ",92,null,null,""]
["VII. Примања од задуживања",91,{"$f":"C41+C44","v":0},{"$f":"D41+D44","v":0},""]
["1. Примања од домаћих задуживања",911,{"$f":"SUM(C42:C43)","v":0},{"$f":"SUM(D42:D43)","v":0},""]
["1.1. Задуживање код јавних финансијских институција и пословних банака","9113 + 9114",null,null,""]
["1.2. Задуживање код осталих кредитора","9111 + 9112 + 9115 + 9116 + 9117 + 9118 + 9119",null,null,""]
["2. Примања од иностраног задуживања",912,null,null,""]
["VIII. НЕТО ФИНАНСИРАЊЕ (IV+V)",null,{"$f":"C31+C32","v":0},{"$f":"D31+D32","v":3343},""]

{"sheet":"član 8","index":3,"n_rows":47,"n_cols":6,"rows_kept":47,"merged":[[46,0,46,1]]}
["Економска \nкласификација","Врста прихода","План","Остварено","%\nОстварено /План","Разлика"]
[1,2,3,4,5,6]
[711,"Порез на доходак, добит и капиталне добитке",{"$f":"SUM(C4:C9)","v":93317},{"$f":"SUM(D4:D9)","v":5555},{"$f":"IF(OR(ISBLANK(C3),C3=0),\"\",D3/C3)","v":{"v":0.05952827459091055,"d":"5.95%"}},{"$f":"D3-C3","v":-87762}]
[711110,"– порез на зараде",73359,5555,{"$f":"IF(OR(ISBLANK(C4),C4=0),\"\",D4/C4)","v":{"v":0.07572349677612836,"d":"7.57%"}},{"$f":"D4-C4","v":-67804}]
[711120,"– порез на приходе од самосталних делатности",10173,null,{"v":0,"d":"0.00%"},-10173]
[711143,"– порез на приходе од непокретности",0,null,"",0]
[711146,"– порез на приходе од пољопривреде и шумарства ",-36,null,{"v":0,"d":"0.00%"},36]
[711147,"– порез на земљиште",72,null,{"v":0,"d":"0.00%"},-72]
[711190,"– порез на друге приходе",9749,null,{"v":0,"d":"0.00%"},-9749]
[713,"Порез на имовину",{"$f":"SUM(C11:C13)","v":31655},{"$f":"SUM(D11:D13)","v":0},{"v":0,"d":"0.00%"},-31655]
[713120,"– порез на имовину",26997,null,{"v":0,"d":"0.00%"},-26997]
[713310,"– порез на наслеђе и поклон",251,null,{"v":0,"d":"0.00%"},-251]
[713420,"– порез на капиталне трансакције",4407,null,{"v":0,"d":"0.00%"},-4407]
[714,"Порез на добра и услуге ",{"$f":"SUM(C15:C20)","v":10424},{"$f":"SUM(D15:D20)","v":0},{"v":0,"d":"0.00%"},-10424]
[714440,"– средства за противпожарну заштиту",0,null,"",0]
[714513,"– комунална такса за држање моторних возила",7986,null,{"v":0,"d":"0.00%"},-7986]
[714514,"– годишња накнада за моторна возила, тракторе и прикључна возила",2,null,{"v":0,"d":"0.00%"},-2]
[714552,"– боравишна такса",0,null,{"$f":"IF(OR(ISBLANK(C18),C18=0),\"\",D18/C18)","v":""},0]
[714562,"– посебна накнада за заштиту и унапређивање животне средине",2436,null,{"v":0,"d":"0.00%"},{"$f":"D19-C19","v":-2436}]
[714570,"– општинске и градске комуналне таксе",null,null,"",0]
[716,"Други порези",{"$f":"C22","v":0},{"$f":"D22","v":0},"",0]
[716111,"– комунална такса за истицање фирме на пословном простору",null,null,"",0]
[730,"Донације и трансфери",{"$f":"SUM(C24:C25)","v":0},{"$f":"SUM(D24:D25)","v":0},"",0]
[731000,"Донације од иностраних држава",null,null,"",0]
[732000,"Донације од међународних организација",null,null,"",0]
[733,"Трансфери од других нивоа власти (грантови)",{"$f":"C27","v":0},{"$f":"D27","v":0},"",0]
[733150,"– текући трансфери од других нивоа власти у корист општине ",null,null,"",0]
[741,"Приходи од имовине",{"$f":"SUM(C29:C31)","v":0},{"$f":"SUM(D29:D31)","v":0},"",0]
[741150,"– камате на средства консолидованог рачуна трезора општине",null,null,"",0]
[741510,"– накнада за коришћење природних добара",null,null,{"$f":"IF(OR(ISBLANK(C30),C30=0),\"\",D30/C30)","v":""},0]
[741534,"– накнаде за коришћење грађевинског земљишта",null,null,"",0]
[742,"Приходи од продаје добара и услуга",{"$f":"SUM(C33:C36)","v":0},{"$f":"SUM(D33:D36)","v":0},"",0]
[742152,"– приходи од давања у закуп, односно на коришћење непокретности у државној својини које кориснте општине и индиректни корисници њиховог буџета",null,null,"",0]
[742251,"– општинске административне таксе",null,null,"",{"$f":"D34-C34","v":0}]
[742253,"– накнада за уређивање грађевинског земљишта",null,null,"",0]
[742351,"– приходи које својом делатношћу остваре органи и организације општине",null,null,"",0]
[743,"Новчане казне и одузета имовинска корист ",{"$f":"C38","v":0},{"$f":"D38","v":0},"",0]
[743351,"– приходи од новчаних казни изречених у прекршајном поступку за прекршаје прописане актом скупштине општине, као и одузета имовинска корист у том поступку",null,null,"",0]
[745,"Мешовити и неодређени приходи",{"$f":"C40","v":0},{"$f":"D40","v":0},"",0]
[745150,"– мешовити и неодређени приходи у корист општине",null,null,"",0]
[812,"Примања од продаје покретне имовине",{"$f":"C42","v":0},{"$f":"D42","v":0},"",0]
[812151,"Примања од продаје покретних ствари у корист нивоа општине",null,null,"",0]
[null,"Сопствени приходи буџетских корисника",null,null,"",0]
[742,"Приходи од продаје добара и услуга",{"$f":"SUM(C45:C46)","v":0},{"$f":"SUM(D45:D46)","v":0},{"$f":"IF(OR(ISBLANK(C44),C44=0),\"\",D44/C44)","v":""},{"$f":"D44-C44","v":0}]
[742150,"– приходи од продаје добара и услуга или закупа од стране тржишних организација у корист нивоа општине",null,null,"",0]
[742372,"– приходи индиректних корисника буџета локалне самоуправе који се остварују додатним активностима",null,null,"",0]
["УКУПНИ ПРИХОДИ И ПРИМАЊА:",null,{"$f":"C3+C10+C14+C21+C23+C26+C28+C32+C37+C39+C41+C44","v":135396},{"$f":"D3+D10+D14+D21+D23+D26+D28+D32+D37+D39+D41+D44","v":5555},{"v":0.041027799935005466,"d":"4.10%"},-129841]

{"sheet":"član 9","index":4,"n_rows":53,"n_cols":6,"rows_kept":53,"merged":[[52,0,52,1]]}
[null,"О П И С","План","Извршење","% Извршено /План","Разлика"]
[1,2,3,4,5,6]
[41,"Расходи за запослене",{"$f":"SUM(C4:C11)","v":0},{"$f":"SUM(D4:D11)","v":96712},{"$f":"IF(OR(ISBLANK(C3),C3=0),\"\", D3/C3)","v":""},{"$f":"D3-C3","v":96712}]
[411,"Плате, додаци и накнаде запослених",null,75200,{"$f":"IF(OR(ISBLANK(C4),C4=0),\"\", D4/C4)","v":""},{"$f":"D4-C4","v":75200}]
[412,"Социјални доприноси на терет послодавца",null,13391,{"$f":"IF(OR(ISBLANK(C5),C5=0),\"\", D5/C5)","v":""},{"$f":"D5-C5","v":13391}]
[413,"Накнаде у натури",null,3077,"",3077]
[414,"Социјална давања запосленима",null,538,"",{"$f":"D7-C7","v":538}]
[415,"Накнада трошкова за запослене",null,3683,"",3683]
[416,"Награде запосленима и остали посебни расходи",null,823,"",823]
[417,"Посланички додатак",null,null,"",0]
[418,"Судијски додатак",null,null,"",0]
[42,"Коришћење услуга и роба",{"$f":"SUM(C13:C18)","v":0},{"$f":"SUM(D13:D18)","v":134971},"",134971]
[421,"Стални трошкови",null,20039,"",20039]
[422,"Трошкови путовања",null,1693,"",1693]
[423,"Услуге по уговору",null,32382,"",32382]
[424,"Специјализоване услуге",null,7315,"",7315]
[425,"Текуће поправке и одржавање",null,42700,"",42700]
[426,"Материјал ",null,30842,"",30842]
[44,"Отплата камата",{"$f":"SUM(C20:C23)","v":0},{"$f":"SUM(D20:D23)","v":643},"",643]
[441,"Отплата домаћих камата",null,null,"",0]
[442,"Отплата страних камата",null,null,"",0]
[443,"Отплата камата по гаранцијама",null,null,"",0]
[444,"Пратећи трошкови задуживања",null,643,"",643]
[45,"Субвенције ",{"$f":"+C25+C26","v":0},{"$f":"+D25+D26","v":17411},"",17411]
[451,"Субвенције јавним нефинансијским предузећима и организацијама",null,17411,{"$f":"IF(OR(ISBLANK(C25),C25=0),\"\", D25/C25)","v":""},17411]
[454,"Субвенције приватним предузећима",null,null,{"$f":"IF(OR(ISBLANK(C26),C26=0),\"\", D26/C26)","v":""},0]
[46,"Донације, дотације и трансфери",{"$f":"SUM(C28:C30)","v":0},{"$f":"SUM(D28:D30)","v":41834},"",41834]
[462,"Дотације међународним организацијама",null,null,"",0]
[463,"Трансфери осталим нивоима власти",null,28998,"",28998]
[464,"Дотације организацијама обавезног социјалног осигурања",null,12836,"",12836]
[47,"Социјално осигурање и социјална заштита",{"$f":"C32","v":0},{"$f":"D32","v":0},"",0]
[472,"Накнаде за социјалну заштиту из буџета",null,null,"",0]
[48,"Остали раходи",{"$f":"SUM(C34:C38)","v":0},{"$f":"SUM(D34:D38)","v":0},"",0]
[481,"Дотације невладиним организацијама",null,null,"",0]
[482,"Порези, обавезне таксе, казне и пенали ",null,null,"",0]
[483,"Новчане казне и пенали по решењу судова ",null,null,"",0]
[484,"Накнада штете за повреде или штету насталу услед елементарних непогода или других природних узрока",null,null,"",0]
[485,"Накнада штете за повреде  или штету нанету од стране државних органа",null,null,"",0]
[49,"Резерве",{"$f":"C40","v":0},{"$f":"D40","v":0},"",0]
[499,"Средства резерве",null,null,"",0]
[51,"Основна средства",{"$f":"SUM(C42:C46)","v":0},{"$f":"SUM(D42:D46)","v":0},"",0]
[511,"Зграде и грађевински објекти",null,null,"",0]
[512,"Машине и опрема",null,null,{"$f":"IF(OR(ISBLANK(C43),C43=0),\"\", D43/C43)","v":""},0]
[513,"Остале некретнине и опрема",null,null,"",0]
[514,"Култивисана имовина",null,null,"",0]
[515,"Нематеријална имовина",null,null,"",0]
[54,"Природна имовина",{"$f":"C48","v":0},{"$f":"D48","v":0},"",0]
[541,"Земљиште",null,null,"",0]
[61,"Отплата главнице",{"$f":"C50","v":0},{"$f":"D50","v":0},"",0]
[611,"Отплата главнице домаћим кредиторима",null,null,"",0]
[62,"Набавка финансијске имовине",{"$f":"C52","v":0},{"$f":"D52","v":0},"",0]
[621,"Набавка домаће финансијске имовине",null,null,"",0]
["УКУПНИ РАСХОДИ И ИЗДАЦИ:",null,{"$f":"C51+C49+C47+C41+C39+C33+C31+C27+C24+C19+C12+C3","v":0},{"$f":"D51+D49+D47+D41+D39+D33+D31+D27+D24+D19+D12+D3","v":291571},"",291571]

{"sheet":"član 10","index":5,"n_rows":650,"n_cols":10,"rows_kept":650,"merged":[[649,0,649,5]]}
["Раздео","Глава","Функција","Позиција","Економска класификација","Опис","Планирано","Извршено","% Извршено/План","Разлика"]
[1,2,3,4,5,6,7,8,9,10]
[1,{"$nulls":4},"СКУПШТИНА ОПШТИНЕ"]
[null,null,110,null,null,"Извршни и законодавни органи, финансијски и фискални послови и спољни послови"]
[{"$nulls":3},1,411,"Плате, додаци и накнаде запослених",null,null,{"$f":"IF(OR(ISBLANK(G5),G5=0),\"\",H5/G5)","v":""},{"$f":"H5-G5","v":0}]
[{"$nulls":3},2,412,"Социјални доприноси на терет послодавца",null,null,{"$f":"IF(OR(ISBLANK(G6),G6=0),\"\",H6/G6)","v":""},0]
[{"$nulls":3},3,413,"Накнаде у натури",null,null,"",0]
[{"$nulls":3},4,414,"Социјална давања запосленима",null,null,"",0]
[{"$nulls":3},5,415,"Накнаде трошкова за запослене",null,null,"",0]
[{"$nulls":3},6,416,"Награде запосленима и остали посебни расходи",null,null,"",0]
[{"$nulls":3},7,421,"Стални трошкови ",null,null,"",0]
[{"$nulls":3},8,422,"Трошкови путовања – средства ове апропријације користиће се за:                    – трошкове путовања функционера             – трошкове путовања одборника",null,null,"",0]
[{"$nulls":3},9,423,"Услуге по уговору*",null,null,"",0]
[{"$nulls":3},10,425,"Текуће поправке и одржавање",null,null,"",0]
[{"$nulls":3},11,426,"Материјал ",null,null,"",0]
[{"$nulls":3},12,482,"Порези, обавезне таксе и казне",null,null,"",0]
[{"$nulls":5},"Извори финансирања за функцију 110:                                              ",null,null,""]
[{"$nulls":4},"01","Приходи из буџета",null,null,"",0]
[{"$nulls":4},"04","Сопствени приходи буџетских корисника",null,null,"",0]
[{"$nulls":4},"05","Донације од иностраних земаља",null,null,"",0]
[{"$nulls":4},"06","Донације од међународних организација",null,null,"",0]
[{"$nulls":4},"07","Трансфери од других нивоа власти",null,null,"",0]
[{"$nulls":4},"08","Добровољни трансфери од физичких и правних лица",null,null,"",0]
[{"$nulls":4},"09","Примања од продаје нефинансијске имовине",null,null,"",0]
[{"$nulls":4},"10","Примања од домаћих задуживања",null,null,"",0]
[{"$nulls":4},"11","Примања од иностраних задуживања",null,null,"",0]
[{"$nulls":4},"12","Примања од отплате датих кредита и продаје финансијске имовине",null,null,"",0]
[{"$nulls":4},"13","Нераспоређени вишак прихода из ранијих година",null,null,"",0]
[{"$nulls":4},"14","Неутрошена средства од приватизације из ранијих година",null,null,"",0]
[{"$nulls":4},"15","Неутрошена средства донација из ранијих година",null,null,"",0]
[{"$nulls":5},"Укупно за функцију 110:",{"$f":"SUM(G18:G30)","v":0},{"$f":"SUM(H18:H30)","v":0},"",0]
[{"$nulls":5},"Извори финансирања за раздео 1: ",null,null,""]
[{"$nulls":4},"01","Приходи из буџета",{"$f":"G18","v":0},{"$f":"H18","v":0},{"$f":"IF(OR(ISBLANK(G33),G33=0),\"\",H33/G33)","v":""},{"$f":"H33-G33","v":0}]
[{"$nulls":4},"04","Сопствени приходи буџетских корисника",{"$f":"G19","v":0},0,"",0]
[{"$nulls":4},"05","Донације од иностраних земаља",0,0,"",0]
[{"$nulls":4},"06","Донације од међународних организација",0,0,"",0]
[{"$nulls":4},"07","Трансфери од других нивоа власти",0,0,"",0]
[{"$nulls":4},"08","Добровољни трансфери од физичких и правних лица",0,0,"",0]
[{"$nulls":4},"09","Примања од продаје нефинансијске имовине",0,0,"",0]
[{"$nulls":4},"10","Примања од домаћих задуживања",0,0,"",0]
[{"$nulls":4},"11","Примања од иностраних задуживања",0,0,"",0]
[{"$nulls":4},"12","Примања од отплате датих кредита и продаје финансијске имовине",0,0,"",0]
[{"$nulls":4},"13","Нераспоређени вишак прихода из ранијих година",0,0,"",0]
[{"$nulls":4},"14","Неутрошена средства од приватизације из ранијих година",0,0,"",0]
[{"$nulls":4},"15","Неутрошена средства донација из ранијих година",0,0,"",0]
[{"$nulls":5},"Укупно за раздео 1:",{"$f":"G31","v":0},{"$f":"H31","v":0},{"$f":"IF(OR(ISBLANK(G46),G46=0),\"\",H46/G46)","v":""},{"$f":"H46-G46","v":0}]
[2,{"$nulls":4},"ПРЕДСЕДНИК ОПШТИНЕ И ОПШТИНСКО ВЕЋЕ",null,null,""]
[null,null,110,null,null,"Извршни и законодавни органи, финансијски и фискални послови и спољни послови",null,null,""]
[{"$nulls":3},13,411,"Плате, додаци и накнаде запослених",null,null,"",0]
[{"$nulls":3},14,412,"Социјални доприноси на терет послодавца",null,null,"",0]
[{"$nulls":3},15,413,"Накнаде у натури",null,null,"",0]
[{"$nulls":3},16,414,"Социјална давања запосленима",null,null,"",0]
[{"$nulls":3},17,415,"Накнаде трошкова за запослене ",null,null,"",0]
[{"$nulls":3},18,416,"Награде запосленима и остали посебни расходи",null,null,"",0]
[{"$nulls":3},19,421,"Стални трошкови ",null,null,"",0]
[{"$nulls":3},20,422,"Трошкови путовања ",null,null,"",0]
[{"$nulls":3},21,423,"Услуге по уговору ",null,null,"",0]
[{"$nulls":3},22,425,"Текуће поправке и одржавање",null,null,"",0]
[{"$nulls":3},23,426,"Материјал",null,null,"",0]
[{"$nulls":3},24,482,"Порези, обавезне таксе, казне и пенали   – новчане казне по решењу суда и судских тела, вансудска поравнања",null,null,"",{"$f":"H60-G60","v":0}]
[{"$nulls":5},"Извори финансирања за функцију 110:                                                        ",null,null,""]
[{"$nulls":4},"01","Приходи из буџета",null,null,"",{"$f":"H62-G62","v":0}]
[{"$nulls":4},"04","Сопствени приходи буџетских корисника",null,null,"",0]
[{"$nulls":4},"05","Донације од иностраних земаља",null,null,"",0]
[{"$nulls":4},"06","Донације од међународних организација",null,null,"",0]
[{"$nulls":4},"07","Трансфери од других нивоа власти",null,null,"",0]
[{"$nulls":4},"08","Добровољни трансфери од физичких и правних лица",null,null,"",0]
[{"$nulls":4},"09","Примања од продаје нефинансијске имовине",null,null,"",0]
[{"$nulls":4},"10","Примања од домаћих задуживања",null,null,"",0]
[{"$nulls":4},"11","Примања од иностраних задуживања",null,null,"",0]
[{"$nulls":4},"12","Примања од отплате датих кредита и продаје финансијске имовине",null,null,"",0]
[{"$nulls":4},"13","Нераспоређени вишак прихода из ранијих година",null,null,"",0]
[{"$nulls":4},"14","Неутрошена средства од приватизације из ранијих година",null,null,"",0]
[{"$nulls":4},"15","Неутрошена средства донација из ранијих година",null,null,"",0]
[{"$nulls":5},"Укупно за функцију 110:",{"$f":"SUM(G62:G74)","v":0},{"$f":"SUM(H62:H74)","v":0},"",{"$f":"H75-G75","v":0}]
[{"$nulls":5},"Извори финансирања за раздео 2: ",null,null,""]
[{"$nulls":4},"01","Приходи из буџета",{"$f":"G62","v":0},{"$f":"H62","v":0},{"$f":"IF(OR(ISBLANK(G77),G77=0),\"\",H77/G77)","v":""},{"$f":"H77-G77","v":0}]
[{"$nulls":4},"04","Сопствени приходи буџетских корисника",{"$f":"G63","v":0},0,"",0]
[{"$nulls":4},"05","Донације од иностраних земаља",0,0,"",0]
[{"$nulls":4},"06","Донације од међународних организација",0,0,"",0]
[{"$nulls":4},"07","Трансфери од других нивоа власти",0,0,"",0]
[{"$nulls":4},"08","Добровољни трансфери од физичких и правних лица",0,0,"",0]
[{"$nulls":4},"09","Примања од продаје нефинансијске имовине",0,0,"",0]
[{"$nulls":4},"10","Примања од домаћих задуживања",0,0,"",0]
[{"$nulls":4},"11","Примања од иностраних задуживања",0,0,"",0]
[{"$nulls":4},"12","Примања од отплате датих кредита и продаје финансијске имовине",0,0,"",0]
[{"$nulls":4},"13","Нераспоређени вишак прихода из ранијих година",0,0,"",0]
[{"$nulls":4},"14","Неутрошена средства од приватизације из ранијих година",0,0,"",0]
[{"$nulls":4},"15","Неутрошена средства донација из ранијих година",0,0,"",0]
[{"$nulls":5},"Укупно за раздео 2:",{"$f":"SUM(G77:G89)","v":0},{"$f":"SUM(H77:H89)","v":0},{"$f":"IF(OR(ISBLANK(G90),G90=0),\"\",H90/G90)","v":""},{"$f":"H90-G90","v":0}]
[3,"3.1.",130,null,null,"ОПШТИНСКА УПРАВА                   Опште услуге",null,null,""]
[{"$nulls":3},25,411,"Плате, додаци и накнаде запослених",null,null,"",{"$f":"H92-G92","v":0}]
[{"$nulls":3},26,412,"Социјални доприноси на терет послодавца",null,null,"",0]
[{"$nulls":3},27,413,"Накнаде у натури",null,null,"",0]
[{"$nulls":3},28,414,"Социјална давања запосленима",null,null,"",0]
[{"$nulls":3},29,415,"Накнаде трошкова за запослене",null,null,"",0]
[{"$nulls":3},30,416,"Награде запосленима и остали посебни расходи",null,null,"",0]
[{"$nulls":3},31,421,"Стални трошкови",null,null,"",0]
[{"$nulls":3},32,422,"Трошкови путовања",null,null,"",0]
[{"$nulls":3},33,423,"Услуге по уговору",null,null,"",0]
[{"$nulls":3},34,424,"Специјализоване услуге:                                 – услуге анализе                                                – просторно планирање                                  – мртвозорство",null,null,"",0]
[{"$nulls":3},35,425,"Текуће поправке и одржавање",null,null,"",0]
[{"$nulls":3},36,426,"Материјал",null,null,"",0]
[{"$nulls":3},37,451,"Субвенције јавним нефинансијским предузећима и организацијама",null,null,"",0]
[{"$nulls":3},38,465,"Остале дотације и трансфери",null,null,"",0]
[{"$nulls":3},39,472,"Накнаде за социјалну заштиту из буџета",null,null,"",0]
[{"$nulls":3},40,481,"Дотације невладиним организацијама",null,null,"",0]
[{"$nulls":3},41,482,"Порези, обавезне таксе, казне и пенали",null,null,"",0]
[{"$nulls":3},42,483,"Новчане казне и пенали по решењу судова",null,null,"",0]
[{"$nulls":3},43,499,"Средства резерве:                                        Ова апропријација обухвата средства намењена за:                                                     – сталну буџетску резерву                                – текућу буџетску резерву",null,null,"",0]
[{"$nulls":3},44,511,"Зграде и грађевински објекти",null,null,"",0]
[{"$nulls":3},45,512,"Машине и опрема",null,null,"",0]
[{"$nulls":3},46,513,"Остала основна средства",null,null,"",0]
[{"$nulls":3},47,621,"Набавка домаће финансијске имовине",null,null,"",0]
[{"$nulls":5},"Извори финансирања за функцију 130:",null,null,""]
[{"$nulls":4},"01","Приходи из буџета",null,null,{"$f":"IF(OR(ISBLANK(G116),G116=0),\"\",H116/G116)","v":""},{"$f":"H116-G116","v":0}]
[{"$nulls":4},"04","Сопствени приходи буџетских корисника",null,null,"",0]
[{"$nulls":4},"05","Донације од иностраних земаља",null,null,"",0]
[{"$nulls":4},"06","Донације од међународних организација",null,null,"",0]
[{"$nulls":4},"07","Трансфери од других нивоа власти",null,null,"",0]
[{"$nulls":4},"08","Добровољни трансфери од физичких и правних лица",null,null,"",0]
[{"$nulls":4},"09","Примања од продаје нефинансијске имовине",null,null,"",0]
[{"$nulls":4},"10","Примања од домаћих задуживања",null,null,"",0]
[{"$nulls":4},"11","Примања од иностраних задуживања",null,null,"",0]
[{"$nulls":4},"12","Примања од отплате датих кредита и продаје финансијске имовине",null,null,"",0]
[{"$nulls":4},"13","Нераспоређени вишак прихода из ранијих година",null,null,"",0]
[{"$nulls":4},"14","Неутрошена средства од приватизације из ранијих година",null,null,"",0]
[{"$nulls":4},"15","Неутрошена средства донација из ранијих година",null,null,"",0]
[{"$nulls":5},"Укупно за функцију 130:",{"$f":"SUM(G116:G128)","v":0},{"$f":"SUM(H116:H128)","v":0},{"$f":"IF(OR(ISBLANK(G129),G129=0),\"\",H129/G129)","v":""},{"$f":"H129-G129","v":0}]
[null,null,170,null,null,"Трансакције јавног дуга",null,null,""]
[{"$nulls":3},48,441,"Отплата домаћих камата",null,null,"",{"$f":"H131-G131","v":0}]
[{"$nulls":3},49,444,"Пратећи трошкови задуживања",null,null,"",{"$f":"H132-G132","v":0}]
[{"$nulls":3},50,611,"Отплата главнице домаћим кредиторима",null,null,"",{"$f":"H133-G133","v":0}]
[{"$nulls":5},"Извори финансирања за функцију 170:",null,null,""]
[{"$nulls":4},"01","Приходи из буџета",null,null,"",{"$f":"H135-G135","v":0}]
[{"$nulls":4},"04","Сопствени приходи буџетских корисника",null,null,"",0]
[{"$nulls":4},"05","Донације од иностраних земаља",null,null,"",0]
[{"$nulls":4},"06","Донације од међународних организација",null,null,"",0]
[{"$nulls":4},"07","Трансфери од других нивоа власти",null,null,"",0]
[{"$nulls":4},"08","Добровољни трансфери од физичких и правних лица",null,null,"",0]
[{"$nulls":4},"09","Примања од продаје нефинансијске имовине",null,null,"",0]
[{"$nulls":4},"10","Примања од домаћих задуживања",null,null,"",0]
[{"$nulls":4},"11","Примања од иностраних задуживања",null,null,"",0]
[{"$nulls":4},"12","Примања од отплате датих кредита и продаје финансијске имовине",null,null,"",0]
[{"$nulls":4},"13","Нераспоређени вишак прихода из ранијих година",null,null,"",0]
[{"$nulls":4},"14","Неутрошена средства од приватизације из ранијих година",null,null,"",0]
[{"$nulls":4},"15","Неутрошена средства донација из ранијих година",null,null,"",0]
[{"$nulls":5},"Укупно за функцију 170",{"$f":"SUM(G135:G147)","v":0},{"$f":"SUM(H135:H147)","v":0},"",{"$f":"H148-G148","v":0}]
[{"$nulls":5},"Извори финансирања за главу 3.1.:",null,null,""]
[{"$nulls":4},"01","Приходи из буџета",{"$f":"G135+G116","v":0},{"$f":"H135+H116","v":0},{"$f":"IF(OR(ISBLANK(G150),G150=0),\"\",H150/G150)","v":""},{"$f":"H150-G150","v":0}]
[{"$nulls":4},"04","Сопствени приходи буџетских корисника",{"$f":"G136+G117","v":0},0,"",0]
[{"$nulls":4},"05","Донације од иностраних земаља",0,0,"",0]
[{"$nulls":4},"06","Донације од међународних организација",0,0,"",0]
[{"$nulls":4},"07","Трансфери од других нивоа власти",0,0,"",0]
[{"$nulls":4},"08","Добровољни трансфери од физичких и правних лица",0,0,"",0]
[{"$nulls":4},"09","Примања од продаје нефинансијске имовине",0,0,"",0]
[{"$nulls":4},"10","Примања од домаћих задуживања",0,0,"",0]
[{"$nulls":4},"11","Примања од иностраних задуживања",0,0,"",0]
[{"$nulls":4},"12","Примања од отплате датих кредита и продаје финансијске имовине",0,0,"",0]
[{"$nulls":4},"13","Нераспоређени вишак прихода из ранијих година",0,0,"",0]
[{"$nulls":4},"14","Неутрошена средства од приватизације из ранијих година",0,0,"",0]
[{"$nulls":4},"15","Неутрошена средства донација из ранијих година",0,0,"",0]
[{"$nulls":5},"Укупно за главу 3.1:",{"$f":"SUM(G150:G162)","v":0},{"$f":"SUM(H150:H162)","v":0},"",{"$f":"H163-G163","v":0}]
[null,"3.2.",{"$nulls":3},"МЕСНЕ ЗАЈЕДНИЦЕ",null,null,""]
[null,null,160,null,null,"Опште јавне услуге некласификоване на другом месту",null,null,""]
[{"$nulls":3},51,411,"Плате, додаци и накнаде запослених",null,null,"",{"$f":"H166-G166","v":0}]
[{"$nulls":3},52,412,"Социјални доприноси на терет послодавца",null,null,"",0]
[{"$nulls":3},53,413,"Накнаде у натури",null,null,"",0]
[{"$nulls":3},54,414,"Социјална давања запосленима",null,null,"",0]
[{"$nulls":3},55,415,"Накнаде трошкова за запослене",null,null,"",0]
[{"$nulls":3},56,416,"Награде запосленима и остали посебни расходи",null,null,"",0]
[{"$nulls":3},57,421,"Стални трошкови",null,null,"",0]
[{"$nulls":3},58,423,"Услуге по уговору",null,null,"",0]
[{"$nulls":3},59,425,"Текуће поправке и одржавање",null,null,"",0]
[{"$nulls":3},60,426,"Материјал",null,null,"",0]
[{"$nulls":3},61,511,"Зграде и грађевински објекти",null,null,"",0]
[{"$nulls":3},62,512,"Машине и опрема",null,null,"",0]
[{"$nulls":5},"Извори финансирања за функцију 160:                                                ",null,null,""]
[{"$nulls":4},"01","Приходи из буџета",null,null,"",{"$f":"H179-G179","v":0}]
[{"$nulls":4},"04","Сопствени приходи буџетских корисника",null,null,"",0]
[{"$nulls":4},"05","Донације од иностраних земаља",null,null,"",0]
[{"$nulls":4},"06","Донације од међународних организација",null,null,"",0]
[{"$nulls":4},"07","Трансфери од других нивоа власти",null,null,"",0]
[{"$nulls":4},"08","Добровољни трансфери од физичких и правних лица",null,null,"",0]
[{"$nulls":4},"09","Примања од продаје нефинансијске имовине",null,null,"",0]
[{"$nulls":4},"10","Примања од домаћих задуживања",null,null,"",0]
[{"$nulls":4},"11","Примања од иностраних задуживања",null,null,"",0]
[{"$nulls":4},"12","Примања од отплате датих кредита и продаје финансијске имовине",null,null,"",0]
[{"$nulls":4},"13","Нераспоређени вишак прихода из ранијих година",null,null,"",0]
[{"$nulls":4},"14","Неутрошена средства од приватизације из ранијих година",null,null,"",0]
[{"$nulls":4},"15","Неутрошена средства донација из ранијих година",null,null,"",0]
[{"$nulls":5},"Укупно за функцију 160:",{"$f":"SUM(G179:G191)","v":0},{"$f":"SUM(H179:H191)","v":0},"",{"$f":"H192-G192","v":0}]
[{"$nulls":5},"Извори финансирања за главу 3.2.:",null,null,""]
[{"$nulls":4},"01","Приходи из буџета",{"$f":"G179","v":0},{"$f":"H179","v":0},{"$f":"IF(OR(ISBLANK(G194),G194=0),\"\",H194/G194)","v":""},{"$f":"H194-G194","v":0}]
[{"$nulls":4},"04","Сопствени приходи буџетских корисника",{"$f":"G180","v":0},0,"",0]
[{"$nulls":4},"05","Донације од иностраних земаља",0,0,"",0]
[{"$nulls":4},"06","Донације од међународних организација",0,0,"",0]
[{"$nulls":4},"07","Трансфери од других нивоа власти",0,0,"",0]
[{"$nulls":4},"08","Добровољни трансфери од физичких и правних лица",0,0,"",0]
[{"$nulls":4},"09","Примања од продаје нефинансијске имовине",0,0,"",0]
[{"$nulls":4},"10","Примања од домаћих задуживања",0,0,"",0]
[{"$nulls":4},"11","Примања од иностраних задуживања",0,0,"",0]
[{"$nulls":4},"12","Примања од отплате датих кредита и продаје финансијске имовине",0,0,"",0]
[{"$nulls":4},"13","Нераспоређени вишак прихода из ранијих година",0,0,"",0]
[{"$nulls":4},"14","Неутрошена средства од приватизације из ранијих година",0,0,"",0]
[{"$nulls":4},"15","Неутрошена средства донација из ранијих година",0,0,"",0]
[{"$nulls":5},"Укупно за главу 3.2:",{"$f":"SUM(G194:G206)","v":0},{"$f":"SUM(H194:H206)","v":0},"",{"$f":"H207-G207","v":0}]
[null,"3.3.",{"$nulls":3},"ПРЕДШКОЛСКО ОБРАЗОВАЊЕ",null,null,""]
[null,null,911,null,null,"Предшколско образовање",null,null,""]
[{"$nulls":3},63,411,"Плате, додаци и накнаде запослених",null,null,"",{"$f":"H210-G210","v":0}]
[{"$nulls":3},64,412,"Социјални доприноси на терет послодавца",null,null,"",0]
[{"$nulls":3},65,413,"Накнаде у натури",null,null,"",0]
[{"$nulls":3},66,414,"Социјална давања запосленима",null,null,"",0]
[{"$nulls":3},67,415,"Накнаде трошкова за запослене",null,null,"",0]
[{"$nulls":3},68,416,"Награде запосленима и остали посебни расходи",null,null,"",0]
[{"$nulls":3},69,421,"Стални трошкови",null,null,"",0]
[{"$nulls":3},70,422,"Трошкови путовања",null,null,"",0]
[{"$nulls":3},71,423,"Услуге по уговору",null,null,"",0]
[{"$nulls":3},72,424,"Специјализоване услуге",null,null,"",0]
[{"$nulls":3},73,425,"Текуће поправке и одржавање (услуге и материјали)",null,null,"",0]
[{"$nulls":3},74,426,"Материјал",null,null,"",0]
[{"$nulls":3},75,465,"Остале дотације и трансфери",null,null,"",0]
[{"$nulls":3},76,482,"Порези, обавезне таксе, казне и пенали ",null,null,"",0]
[{"$nulls":3},77,483,"Новчане казне и пенали по решењу судова ",null,null,"",0]
[{"$nulls":3},78,511,"Зграде и грађевински објекти",null,null,"",0]
[{"$nulls":3},79,512,"Машине и опрема",null,null,"",0]
[{"$nulls":3},80,513,"Остала основна средства",null,null,"",0]
[{"$nulls":3},81,515,"Нематеријална имовина",null,null,"",0]
[{"$nulls":5},"Извори финансирања за функцију 911:"]
[{"$nulls":4},"01","Приходи из буџета",null,null,{"$f":"IF(OR(ISBLANK(G230),G230=0),\"\",H230/G230)","v":""},{"$f":"H230-G230","v":0}]
[{"$nulls":4},"04","Сопствени приходи буџетских корисника",null,null,"",0]
[{"$nulls":4},"05","Донације од иностраних земаља",null,null,"",0]
[{"$nulls":4},"06","Донације од међународних организација",null,null,"",0]
[{"$nulls":4},"07","Трансфери од других нивоа власти",null,null,"",0]
[{"$nulls":4},"08","Добровољни трансфери од физичких и правних лица",null,null,"",0]
[{"$nulls":4},"09","Примања од продаје нефинансијске имовине",null,null,"",0]
[{"$nulls":4},"10","Примања од домаћих задуживања",null,null,"",0]
[{"$nulls":4},"11","Примања од иностраних задуживања",null,null,"",0]
[{"$nulls":4},"12","Примања од отплате датих кредита и продаје финансијске имовине",null,null,"",0]
[{"$nulls":4},"13","Нераспоређени вишак прихода из ранијих година",null,null,"",0]
[{"$nulls":4},"14","Неутрошена средства од приватизације из ранијих година",null,null,"",0]
[{"$nulls":4},"15","Неутрошена средства донација из ранијих година",null,null,"",0]
[{"$nulls":5},"Укупно за функцију 911:",{"$f":"SUM(G230:G242)","v":0},{"$f":"SUM(H230:H242)","v":0},{"$f":"IF(OR(ISBLANK(G243),G243=0),\"\",H243/G243)","v":""},{"$f":"H243-G243","v":0}]
[{"$nulls":5},"Извори финансирања за главу 3.3:",null,null,""]
[{"$nulls":4},"01","Приходи из буџета",{"$f":"G230","v":0},{"$f":"H230","v":0},"",{"$f":"H245-G245","v":0}]
[{"$nulls":4},"04","Сопствени приходи буџетских корисника",{"$f":"G231","v":0},0,"",0]
[{"$nulls":4},"05","Донације од иностраних земаља",0,0,"",0]
[{"$nulls":4},"06","Донације од међународних организација",0,0,"",0]
[{"$nulls":4},"07","Трансфери од других нивоа власти",0,0,"",0]
[{"$nulls":4},"08","Добровољни трансфери од физичких и правних лица",0,0,"",0]
[{"$nulls":4},"09","Примања од продаје нефинансијске имовине",0,0,"",0]
[{"$nulls":4},"10","Примања од домаћих задуживања",0,0,"",0]
[{"$nulls":4},"11","Примања од иностраних задуживања",0,0,"",0]
[{"$nulls":4},"12","Примања од отплате датих кредита и продаје финансијске имовине",0,0,"",0]
[{"$nulls":4},"13","Нераспоређени вишак прихода из ранијих година",0,0,"",0]
[{"$nulls":4},"14","Неутрошена средства од приватизације из ранијих година",0,0,"",0]
[{"$nulls":4},"15","Неутрошена средства донација из ранијих година",0,0,"",0]
[{"$nulls":5},"Укупно за главу 3.3.:",{"$f":"SUM(G245:G257)","v":0},{"$f":"SUM(H245:H257)","v":0},"",{"$f":"H258-G258","v":0}]
[null,"3.4.",{"$nulls":3},"ОСНОВНО ОБРАЗОВАЊЕ",null,null,""]
[null,null,912,null,null,"Основно образовање",null,null,""]
[{"$nulls":3},82,463,"Трансфери осталим нивоима власти (текући)",null,null,"",{"$f":"H261-G261","v":0}]
[{"$nulls":3},83,463,"Трансфери осталим нивоима власти (капитални)",null,null,"",{"$f":"H262-G262","v":0}]
[{"$nulls":5},"Извори финансирања за функцију 912:",null,null,""]
[{"$nulls":4},"01","Приходи из буџета",null,null,{"$f":"IF(OR(ISBLANK(G264),G264=0),\"\",H264/G264)","v":""},{"$f":"H264-G264","v":0}]
[{"$nulls":4},"04","Сопствени приходи буџетских корисника",null,null,"",0]
[{"$nulls":4},"05","Донације од иностраних земаља",null,null,"",0]
[{"$nulls":4},"06","Донације од међународних организација",null,null,"",0]
[{"$nulls":4},"07","Трансфери од других нивоа власти",null,null,"",0]
[{"$nulls":4},"08","Добровољни трансфери од физичких и правних лица",null,null,"",0]
[{"$nulls":4},"09","Примања од продаје нефинансијске имовине",null,null,"",0]
[{"$nulls":4},"10","Примања од домаћих задуживања",null,null,"",0]
[{"$nulls":4},"11","Примања од иностраних задуживања",null,null,"",0]
[{"$nulls":4},"12","Примања од отплате датих кредита и продаје финансијске имовине",null,null,"",0]
[{"$nulls":4},"13","Нераспоређени вишак прихода из ранијих година",null,null,"",0]
[{"$nulls":4},"14","Неутрошена средства од приватизације из ранијих година",null,null,"",0]
[{"$nulls":4},"15","Неутрошена средства донација из ранијих година",null,null,"",0]
[{"$nulls":5},"Укупно за функцију 912:",{"$f":"SUM(G264:G276)","v":0},{"$f":"SUM(H264:H276)","v":0},"",{"$f":"H277-G277","v":0}]
[{"$nulls":5},"Извори финансирања за главу 3.4:",null,null,""]
[{"$nulls":4},"01","Приходи из буџета",{"$f":"G264","v":0},{"$f":"H264","v":0},"",{"$f":"H279-G279","v":0}]
[{"$nulls":4},"04","Сопствени приходи буџетских корисника",{"$f":"G265","v":0},0,"",0]
[{"$nulls":4},"05","Донације од иностраних земаља",0,0,"",0]
[{"$nulls":4},"06","Донације од међународних организација",0,0,"",0]
[{"$nulls":4},"07","Трансфери од других нивоа власти",0,0,"",0]
[{"$nulls":4},"08","Добровољни трансфери од физичких и правних лица",0,0,"",0]
[{"$nulls":4},"09","Примања од продаје нефинансијске имовине",0,0,"",0]
[{"$nulls":4},"10","Примања од домаћих задуживања",0,0,"",0]
[{"$nulls":4},"11","Примања од иностраних задуживања",0,0,"",0]
[{"$nulls":4},"12","Примања од отплате датих кредита и продаје финансијске имовине",0,0,"",0]
[{"$nulls":4},"13","Нераспоређени вишак прихода из ранијих година",0,0,"",0]
[{"$nulls":4},"14","Неутрошена средства од приватизације из ранијих година",0,0,"",0]
[{"$nulls":4},"15","Неутрошена средства донација из ранијих година",0,0,"",0]
[{"$nulls":5},"Укупно за главу 3.4:",{"$f":"SUM(G279:G291)","v":0},{"$f":"SUM(H279:H291)","v":0},{"$f":"IF(OR(ISBLANK(G292),G292=0),\"\",H292/G292)","v":""},{"$f":"H292-G292","v":0}]
[null,"3.5.",{"$nulls":3},"СРЕДЊЕ ОБРАЗОВАЊЕ",null,null,""]
[null,null,920,null,null,"Средње образовање",null,null,""]
[{"$nulls":3},84,463,"Трансфери осталим нивоима власти (текући)",null,null,"",{"$f":"H295-G295","v":0}]
[{"$nulls":3},85,463,"Трансфери осталим нивоима власти (капитални)",null,null,"",{"$f":"H296-G296","v":0}]
[{"$nulls":5},"Извори финансирања за функцију 920:",null,null,""]
[{"$nulls":4},"01","Приходи из буџета",null,null,{"$f":"IF(OR(ISBLANK(G298),G298=0),\"\",H298/G298)","v":""},{"$f":"H298-G298","v":0}]
[{"$nulls":4},"04","Сопствени приходи буџетских корисника",null,null,"",0]
[{"$nulls":4},"05","Донације од иностраних земаља",null,null,"",0]
[{"$nulls":4},"06","Донације од међународних организација",null,null,"",0]
[{"$nulls":4},"07","Трансфери од других нивоа власти",null,null,"",0]
[{"$nulls":4},"08","Добровољни трансфери од физичких и правних лица",null,null,"",0]
[{"$nulls":4},"09","Примања од продаје нефинансијске имовине",null,null,"",0]
[{"$nulls":4},"10","Примања од домаћих задуживања",null,null,"",0]
[{"$nulls":4},"11","Примања од иностраних задуживања",null,null,"",0]
[{"$nulls":4},"12","Примања од отплате датих кредита и продаје финансијске имовине",null,null,"",0]
[{"$nulls":4},"13","Нераспоређени вишак прихода из ранијих година",null,null,"",0]
[{"$nulls":4},"14","Неутрошена средства од приватизације из ранијих година",null,null,"",0]
[{"$nulls":4},"15","Неутрошена средства донација из ранијих година",null,null,"",0]
[{"$nulls":5},"Укупно за функцију 920:",{"$f":"SUM(G298:G310)","v":0},{"$f":"SUM(H298:H310)","v":0},{"$f":"IF(OR(ISBLANK(G311),G311=0),\"\",H311/G311)","v":""},{"$f":"H311-G311","v":0}]
[{"$nulls":5},"Извори финансирања за главу 3.5:",null,null,""]
[{"$nulls":4},"01","Приходи из буџета",{"$f":"G298","v":0},{"$f":"H298","v":0},"",{"$f":"H313-G313","v":0}]
[{"$nulls":4},"04","Сопствени приходи буџетских корисника",{"$f":"G299","v":0},0,"",0]
[{"$nulls":4},"05","Донације од иностраних земаља",0,0,"",0]
[{"$nulls":4},"06","Донације од међународних организација",0,0,"",0]
[{"$nulls":4},"07","Трансфери од других нивоа власти",0,0,"",0]
[{"$nulls":4},"08","Добровољни трансфери од физичких и правних лица",0,0,"",0]
[{"$nulls":4},"09","Примања од продаје нефинансијске имовине",0,0,"",0]
[{"$nulls":4},"10","Примања од домаћих задуживања",0,0,"",0]
[{"$nulls":4},"11","Примања од иностраних задуживања",0,0,"",0]
[{"$nulls":4},"12","Примања од отплате датих кредита и продаје финансијске имовине",0,0,"",0]
[{"$nulls":4},"13","Нераспоређени вишак прихода из ранијих година",0,0,"",0]
[{"$nulls":4},"14","Неутрошена средства од приватизације из ранијих година",0,0,"",0]
[{"$nulls":4},"15","Неутрошена средства донација из ранијих година",0,0,"",0]
[{"$nulls":5},"Укупно за главу 3.5:",{"$f":"SUM(G313:G325)","v":0},{"$f":"SUM(H313:H325)","v":0},{"$f":"IF(OR(ISBLANK(G326),G326=0),\"\",H326/G326)","v":""},{"$f":"H326-G326","v":0}]
[null,"3.6.",{"$nulls":3},"КУЛТУРА",null,null,""]
[null,null,820,null,null,"Услуге културе",null,null,""]
[{"$nulls":3},86,411,"Плате, додаци и накнаде запослених",null,null,"",{"$f":"H329-G329","v":0}]
[{"$nulls":3},87,412,"Социјални доприноси на терет послодавца",null,null,"",0]
[{"$nulls":3},88,413,"Накнаде у натури",null,null,"",0]
[{"$nulls":3},89,414,"Социјална давања запосленима",null,null,"",0]
[{"$nulls":3},90,415,"Накнаде трошкова за запослене",null,null,"",0]
[{"$nulls":3},91,416,"Награде запосленима и остали посебни расходи",null,null,"",0]
[{"$nulls":3},92,421,"Стални трошкови",null,null,"",0]
[{"$nulls":3},93,422,"Трошкови путовања",null,null,"",0]
[{"$nulls":3},94,423,"Услуге по уговору",null,null,"",0]
[{"$nulls":3},95,424,"Специјализоване услуге",null,null,"",0]
[{"$nulls":3},96,425,"Текуће поправке и одржавање (услуге и материјали)",null,null,"",0]
[{"$nulls":3},97,426,"Материјал",null,null,"",0]
[{"$nulls":3},98,465,"Остале донације и трансфери",null,null,"",0]
[{"$nulls":3},99,481,"Дотације невладиним организацијама",null,null,"",0]
[{"$nulls":3},100,482,"Порези, обавезне таксе, казне и пенали",null,null,"",0]
[{"$nulls":3},101,483,"Новчане казне и пенали по решењу судова ",null,null,"",0]
[{"$nulls":3},102,511,"Зграде и грађевински објекти",null,null,"",0]
[{"$nulls":3},103,512,"Машине и опрема",null,null,"",0]
[{"$nulls":3},104,513,"Остала основна средства",null,null,"",0]
[{"$nulls":5},"Извори финансирања за функцију 820:",null,null,""]
[{"$nulls":4},"01","Приходи из буџета",null,null,{"$f":"IF(OR(ISBLANK(G349),G349=0),\"\",H349/G349)","v":""},{"$f":"H349-G349","v":0}]
[{"$nulls":4},"04","Сопствени приходи буџетских корисника",null,null,"",0]
[{"$nulls":4},"05","Донације од иностраних земаља",null,null,"",0]
[{"$nulls":4},"06","Донације од међународних организација",null,null,"",0]
[{"$nulls":4},"07","Трансфери од других нивоа власти",null,null,"",0]
[{"$nulls":4},"08","Добровољни трансфери од физичких и правних лица",null,null,"",0]
[{"$nulls":4},"09","Примања од продаје нефинансијске имовине",null,null,"",0]
[{"$nulls":4},"10","Примања од домаћих задуживања",null,null,"",0]
[{"$nulls":4},"11","Примања од иностраних задуживања",null,null,"",0]
[{"$nulls":4},"12","Примања од отплате датих кредита и продаје финансијске имовине",null,null,"",0]
[{"$nulls":4},"13","Нераспоређени вишак прихода из ранијих година",null,null,"",0]
[{"$nulls":4},"14","Неутрошена средства од приватизације из ранијих година",null,null,"",0]
[{"$nulls":4},"15","Неутрошена средства донација из ранијих година",null,null,"",0]
[{"$nulls":5},"Укупно за функцију 820:",{"$f":"SUM(G349:G361)","v":0},{"$f":"SUM(H349:H361)","v":0},{"$f":"IF(OR(ISBLANK(G362),G362=0),\"\",H362/G362)","v":""},{"$f":"H362-G362","v":0}]
[{"$nulls":5},"Извори финансирања за главу 3.6:"]
[{"$nulls":4},"01","Приходи из буџета",{"$f":"G349","v":0},{"$f":"H349","v":0},"",{"$f":"H364-G364","v":0}]
[{"$nulls":4},"04","Сопствени приходи буџетских корисника",{"$f":"G350","v":0},0,"",0]
[{"$nulls":4},"05","Донације од иностраних земаља",0,0,"",0]
[{"$nulls":4},"06","Донације од међународних организација",0,0,"",0]
[{"$nulls":4},"07","Трансфери од других нивоа власти",0,0,"",0]
[{"$nulls":4},"08","Добровољни трансфери од физичких и правних лица",0,0,"",0]
[{"$nulls":4},"09","Примања од продаје нефинансијске имовине",0,0,"",0]
[{"$nulls":4},"10","Примања од домаћих задуживања",0,0,"",0]
[{"$nulls":4},"11","Примања од иностраних задуживања",0,0,"",0]
[{"$nulls":4},"12","Примања од отплате датих кредита и продаје финансијске имовине",0,0,"",0]
[{"$nulls":4},"13","Нераспоређени вишак прихода из ранијих година",0,0,"",0]
[{"$nulls":4},"14","Неутрошена средства од приватизације из ранијих година",0,0,"",0]
[{"$nulls":4},"15","Неутрошена средства донација из ранијих година",0,0,"",0]
[{"$nulls":5},"Укупно за главу 3.6.",{"$f":"SUM(G364:G376)","v":0},{"$f":"SUM(H364:H376)","v":0},"",{"$f":"H377-G377","v":0}]
[null,"3.7.",{"$nulls":3},"РЕКРЕАЦИЈА И СПОРТ",null,null,""]
[null,null,810,null,null,"Услуге рекреације и спорта"]
[{"$nulls":3},105,411,"Плате, додаци и накнаде запослених",null,null,"",{"$f":"H380-G380","v":0}]
[{"$nulls":3},106,412,"Социјални доприноси на терет послодавца",null,null,"",0]
[{"$nulls":3},107,413,"Накнаде у натури",null,null,"",0]
[{"$nulls":3},108,414,"Социјална давања запосленима",null,null,"",0]
[{"$nulls":3},109,415,"Накнаде трошкова за запослене",null,null,"",0]
[{"$nulls":3},110,416,"Награде запосленима и остали посебни расходи",null,null,"",0]
[{"$nulls":3},111,421,"Стални трошкови",null,null,"",0]
[{"$nulls":3},112,422,"Трошкови путовања",null,null,{"$f":"IF(OR(ISBLANK(G387),G387=0),\"\",H387/G387)","v":""},0]
[{"$nulls":3},113,423,"Услуге по уговору",null,null,"",0]
[{"$nulls":3},114,424,"Специјализоване услуге",null,null,"",0]
[{"$nulls":3},115,425,"Текуће поправке и одржавање (услуге и материјали)",null,null,"",0]
[{"$nulls":3},116,426,"Материјал",null,null,"",0]
[{"$nulls":3},117,465,"Остале донације и трансфери",null,null,"",0]
[{"$nulls":3},118,481,"Дотације невладиним организацијама ",null,null,"",0]
[{"$nulls":3},119,482,"Порези, обавезне таксе, казне и пенали",null,null,"",0]
[{"$nulls":3},120,483,"Новчане казне и пенали по решењу судова ",null,null,"",0]
[{"$nulls":3},121,511,"Зграде и грађевински објекти",null,null,"",0]
[{"$nulls":3},122,512,"Машине и опрема",null,null,"",0]
[{"$nulls":3},123,513,"Остала основна средства",null,null,"",0]
[{"$nulls":5},"Извори финансирања за функцију 810:",null,null,""]
[{"$nulls":4},"01","Приходи из буџета",null,null,"",{"$f":"H400-G400","v":0}]
[{"$nulls":4},"04","Сопствени приходи буџетских корисника",null,null,"",0]
[{"$nulls":4},"05","Донације од иностраних земаља",null,null,"",0]
[{"$nulls":4},"06","Донације од међународних организација",null,null,"",0]
[{"$nulls":4},"07","Трансфери од других нивоа власти",null,null,"",0]
[{"$nulls":4},"08","Добровољни трансфери од физичких и правних лица",null,null,"",0]
[{"$nulls":4},"09","Примања од продаје нефинансијске имовине",null,null,"",0]
[{"$nulls":4},"10","Примања од домаћих задуживања",null,null,"",0]
[{"$nulls":4},"11","Примања од иностраних задуживања",null,null,"",0]
[{"$nulls":4},"12","Примања од отплате датих кредита и продаје финансијске имовине",null,null,"",0]
[{"$nulls":4},"13","Нераспоређени вишак прихода из ранијих година",null,null,"",0]
[{"$nulls":4},"14","Неутрошена средства од приватизације из ранијих година",null,null,"",0]
[{"$nulls":4},"15","Неутрошена средства донација из ранијих година",null,null,"",0]
[{"$nulls":5},"Укупно за функцију 810:",{"$f":"SUM(G400:G412)","v":0},{"$f":"SUM(H400:H412)","v":0},{"$f":"IF(OR(ISBLANK(G413),G413=0),\"\",H413/G413)","v":""},{"$f":"H413-G413","v":0}]
[{"$nulls":5},"Извори финансирања за главу 3.7:",null,null,""]
[{"$nulls":4},"01","Приходи из буџета",{"$f":"G400","v":0},{"$f":"H400","v":0},{"$f":"IF(OR(ISBLANK(G415),G415=0),\"\",H415/G415)","v":""},{"$f":"H415-G415","v":0}]
[{"$nulls":4},"04","Сопствени приходи буџетских корисника",{"$f":"G401","v":0},0,"",0]
[{"$nulls":4},"05","Донације од иностраних земаља",0,0,"",0]
[{"$nulls":4},"06","Донације од међународних организација",0,0,"",0]
[{"$nulls":4},"07","Трансфери од других нивоа власти",0,0,"",0]
[{"$nulls":4},"08","Добровољни трансфери од физичких и правних лица",0,0,"",0]
[{"$nulls":4},"09","Примања од продаје нефинансијске имовине",0,0,"",0]
[{"$nulls":4},"10","Примања од домаћих задуживања",0,0,"",0]
[{"$nulls":4},"11","Примања од иностраних задуживања",0,0,"",0]
[{"$nulls":4},"12","Примања од отплате датих кредита и продаје финансијске имовине",0,0,"",0]
[{"$nulls":4},"13","Нераспоређени вишак прихода из ранијих година",0,0,"",0]
[{"$nulls":4},"14","Неутрошена средства од приватизације из ранијих година",0,0,"",0]
[{"$nulls":4},"15","Неутрошена средства донација из ранијих година",0,0,"",0]
[{"$nulls":5},"Укупно за главу 3.7.",{"$f":"SUM(G415:G427)","v":0},{"$f":"SUM(H415:H427)","v":0},"",{"$f":"H428-G428","v":0}]
[null,"3.8.",{"$nulls":3},"СОЦИЈАЛНА ЗАШТИТА",null,null,""]
[null,"3.8.",{"$nulls":3},"Центар за социјални рад ",null,null,""]
[null,null,90,null,null,"Социјална помоћ угроженом становништву некласификоване на другом месту ",null,null,""]
[{"$nulls":3},124,463,"Трансфери осталим нивоима власти",null,null,"",{"$f":"H432-G432","v":0}]
[{"$nulls":5},"Извори финансирања за функцију 090:",null,null,""]
[{"$nulls":4},"01","Приходи из буџета",null,null,"",{"$f":"H434-G434","v":0}]
[{"$nulls":4},"04","Сопствени приходи буџетских корисника",null,null,"",0]
[{"$nulls":4},"05","Донације од иностраних земаља",null,null,"",0]
[{"$nulls":4},"06","Донације од међународних организација",null,null,"",0]
[{"$nulls":4},"07","Трансфери од других нивоа власти",null,null,"",0]
[{"$nulls":4},"08","Добровољни трансфери од физичких и правних лица",null,null,"",0]
[{"$nulls":4},"09","Примања од продаје нефинансијске имовине",null,null,"",0]
[{"$nulls":4},"10","Примања од домаћих задуживања",null,null,"",0]
[{"$nulls":4},"11","Примања од иностраних задуживања",null,null,"",0]
[{"$nulls":4},"12","Примања од отплате датих кредита и продаје финансијске имовине",null,null,"",0]
[{"$nulls":4},"13","Нераспоређени вишак прихода из ранијих година",null,null,"",0]
[{"$nulls":4},"14","Неутрошена средства од приватизације из ранијих година",null,null,"",0]
[{"$nulls":4},"15","Неутрошена средства донација из ранијих година",null,null,"",0]
[{"$nulls":5},"Укупно за функцију 090:",{"$f":"SUM(G434:G446)","v":0},{"$f":"SUM(H434:H446)","v":0},"",{"$f":"H447-G447","v":0}]
[{"$nulls":5},"Извори финансирања за главу 3.8:",null,null,""]
[{"$nulls":4},"01","Приходи из буџета",{"$f":"G434","v":0},{"$f":"H434","v":0},{"$f":"IF(OR(ISBLANK(G449),G449=0),\"\",H449/G449)","v":""},{"$f":"H449-G449","v":0}]
[{"$nulls":4},"04","Сопствени приходи буџетских корисника",{"$f":"G435","v":0},0,"",0]
[{"$nulls":4},"05","Донације од иностраних земаља",0,0,"",0]
[{"$nulls":4},"06","Донације од међународних организација",0,0,"",0]
[{"$nulls":4},"07","Трансфери од других нивоа власти",0,0,"",0]
[{"$nulls":4},"08","Добровољни трансфери од физичких и правних лица",0,0,"",0]
[{"$nulls":4},"09","Примања од продаје нефинансијске имовине",0,0,"",0]
[{"$nulls":4},"10","Примања од домаћих задуживања",0,0,"",0]
[{"$nulls":4},"11","Примања од иностраних задуживања",0,0,"",0]
[{"$nulls":4},"12","Примања од отплате датих кредита и продаје финансијске имовине",0,0,"",0]
[{"$nulls":4},"13","Нераспоређени вишак прихода из ранијих година",0,0,"",0]
[{"$nulls":4},"14","Неутрошена средства од приватизације из ранијих година",0,0,"",0]
[{"$nulls":4},"15","Неутрошена средства донација из ранијих година",0,0,"",0]
[{"$nulls":5},"Укупно за главу 3.8.",{"$f":"SUM(G449:G461)","v":0},{"$f":"SUM(H449:H461)","v":0},{"$f":"IF(OR(ISBLANK(G462),G462=0),\"\",H462/G462)","v":""},{"$f":"H462-G462","v":0}]
[null,"3.9.",{"$nulls":3},"ЗДРАВСТВО",null,null,""]
[null,null,760,null,null,"Здравство некласификовано на другом месту",null,null,""]
[{"$nulls":3},125,463,"Капитални трансфери осталим нивоима власти                                                                    – Инвестиционо, текуће одржавање и опрема",null,null,"",{"$f":"H465-G465","v":0}]
[{"$nulls":5},"Извори финансирања за функцију 760:"]
[{"$nulls":4},"01","Приходи из буџета",null,null,"",{"$f":"H467-G467","v":0}]
[{"$nulls":4},"04","Сопствени приходи буџетских корисника",null,null,"",0]
[{"$nulls":4},"05","Донације од иностраних земаља",null,null,"",0]
[{"$nulls":4},"06","Донације од међународних организација",null,null,"",0]
[{"$nulls":4},"07","Трансфери од других нивоа власти",null,null,"",0]
[{"$nulls":4},"08","Добровољни трансфери од физичких и правних лица",null,null,"",0]
[{"$nulls":4},"09","Примања од продаје нефинансијске имовине",null,null,"",0]
[{"$nulls":4},"10","Примања од домаћих задуживања",null,null,"",0]
[{"$nulls":4},"11","Примања од иностраних задуживања",null,null,"",0]
[{"$nulls":4},"12","Примања од отплате датих кредита и продаје финансијске имовине",null,null,"",0]
[{"$nulls":4},"13","Нераспоређени вишак прихода из ранијих година",null,null,"",0]
[{"$nulls":4},"14","Неутрошена средства од приватизације из ранијих година",null,null,"",0]
[{"$nulls":4},"15","Неутрошена средства донација из ранијих година",null,null,"",0]
[{"$nulls":5},"Укупно за функцију 760:",{"$f":"SUM(G467:G479)","v":0},{"$f":"SUM(H467:H479)","v":0},"",{"$f":"H480-G480","v":0}]
[{"$nulls":5},"Извори финансирања за главу 3.9:"]
[{"$nulls":4},"01","Приходи из буџета",{"$f":"G467","v":0},{"$f":"H467","v":0},{"$f":"IF(OR(ISBLANK(G482),G482=0),\"\",H482/G482)","v":""},{"$f":"H482-G482","v":0}]
[{"$nulls":4},"04","Сопствени приходи буџетских корисника",{"$f":"G468","v":0},0,"",0]
[{"$nulls":4},"05","Донације од иностраних земаља",0,0,"",0]
[{"$nulls":4},"06","Донације од међународних организација",0,0,"",0]
[{"$nulls":4},"07","Трансфери од других нивоа власти",0,0,"",0]
[{"$nulls":4},"08","Добровољни трансфери од физичких и правних лица",0,0,"",0]
[{"$nulls":4},"09","Примања од продаје нефинансијске имовине",0,0,"",0]
[{"$nulls":4},"10","Примања од домаћих задуживања",0,0,"",0]
[{"$nulls":4},"11","Примања од иностраних задуживања",0,0,"",0]
[{"$nulls":4},"12","Примања од отплате датих кредита и продаје финансијске имовине",0,0,"",0]
[{"$nulls":4},"13","Нераспоређени вишак прихода из ранијих година",0,0,"",0]
[{"$nulls":4},"14","Неутрошена средства од приватизације из ранијих година",0,0,"",0]
[{"$nulls":4},"15","Неутрошена средства донација из ранијих година",0,0,"",0]
[{"$nulls":5},"Укупно за главу 3.9:",{"$f":"SUM(G482:G494)","v":0},{"$f":"SUM(H482:H494)","v":0},"",{"$f":"H495-G495","v":0}]
[null,"3.10.",{"$nulls":3},"ЈП Дирекција за изградњу општине",null,null,""]
[null,null,620,null,null,"Развој заједнице",null,null,""]
[{"$nulls":3},126,411,"Плате, додаци и накнаде запослених",null,null,"",{"$f":"H498-G498","v":0}]
[{"$nulls":3},127,412,"Социјални доприноси на терет послодавца",null,null,"",0]
[{"$nulls":3},128,413,"Накнаде у натури",null,null,"",0]
[{"$nulls":3},129,414,"Социјална давања запосленима",null,null,"",0]
[{"$nulls":3},130,415,"Накнаде за запослене",null,null,"",0]
[{"$nulls":3},131,416,"Награде запосленима и остали посебни расходи",null,null,"",0]
[{"$nulls":3},132,421,"Стални трошкови",null,null,"",0]
[{"$nulls":3},133,422,"Трошкови путовања",null,null,"",0]
[{"$nulls":3},134,423,"Услуге по уговору",null,null,"",0]
[{"$nulls":3},135,424,"Специјализоване услуге",null,null,"",0]
[{"$nulls":3},136,425,"Текуће поправке и одржавање (услуге и материјали)",null,null,"",0]
[{"$nulls":3},137,426,"Материјал",null,null,"",0]
[{"$nulls":3},138,465,"Остале дотације и трансфери",null,null,"",0]
[{"$nulls":3},139,482,"Порези, обавезне таксе, казне и пенали",null,null,"",0]
[{"$nulls":3},140,483,"Новчане казне и пенали по решењу судова ",null,null,"",0]
[{"$nulls":3},141,511,"Зграде и грађевински објекти",null,null,"",0]
[{"$nulls":3},142,512,"Машине и опрема",null,null,"",0]
[{"$nulls":3},143,541,"Земљиште",null,null,"",0]
[{"$nulls":5},"Извори финансирања за функцију 620:"]
[{"$nulls":4},"01","Приходи из буџета",null,null,{"$f":"IF(OR(ISBLANK(G517),G517=0),\"\",H517/G517)","v":""},{"$f":"H517-G517","v":0}]
[{"$nulls":4},"04","Сопствени приходи буџетских корисника",null,null,"",0]
[{"$nulls":4},"05","Донације од иностраних земаља",null,null,"",0]
[{"$nulls":4},"06","Донације од међународних организација",null,null,"",0]
[{"$nulls":4},"07","Трансфери од других нивоа власти",null,null,"",0]
[{"$nulls":4},"08","Добровољни трансфери од физичких и правних лица",null,null,"",0]
[{"$nulls":4},"09","Примања од продаје нефинансијске имовине",null,null,"",0]
[{"$nulls":4},"10","Примања од домаћих задуживања",null,null,"",0]
[{"$nulls":4},"11","Примања од иностраних задуживања",null,null,"",0]
[{"$nulls":4},"12","Примања од отплате датих кредита и продаје финансијске имовине",null,null,"",0]
[{"$nulls":4},"13","Нераспоређени вишак прихода из ранијих година",null,null,"",0]
[{"$nulls":4},"14","Неутрошена средства од приватизације из ранијих година",null,null,"",0]
[{"$nulls":4},"15","Неутрошена средства донација из ранијих година",null,null,"",0]
[{"$nulls":5},"Укупно за функцију 620",{"$f":"SUM(G517:G529)","v":0},{"$f":"SUM(H517:H529)","v":0},"",{"$f":"H530-G530","v":0}]
[{"$nulls":5},"Извори финансирања за главу 3.10:",null,null,""]
[{"$nulls":4},"01","Приходи из буџета",{"$f":"G517","v":0},{"$f":"H517","v":0},{"$f":"IF(OR(ISBLANK(G532),G532=0),\"\",H532/G532)","v":""},{"$f":"H532-G532","v":0}]
[{"$nulls":4},"04","Сопствени приходи буџетских корисника",{"$f":"G518","v":0},0,"",0]
[{"$nulls":4},"05","Донације од иностраних земаља",0,0,"",0]
[{"$nulls":4},"06","Донације од међународних организација",0,0,"",0]
[{"$nulls":4},"07","Трансфери од других нивоа власти",0,0,"",0]
[{"$nulls":4},"08","Добровољни трансфери од физичких и правних лица",0,0,"",0]
[{"$nulls":4},"09","Примања од продаје нефинансијске имовине",0,0,"",0]
[{"$nulls":4},"10","Примања од домаћих задуживања",0,0,"",0]
[{"$nulls":4},"11","Примања од иностраних задуживања",0,0,"",0]
[{"$nulls":4},"12","Примања од отплате датих кредита и продаје финансијске имовине",0,0,"",0]
[{"$nulls":4},"13","Нераспоређени вишак прихода из ранијих година",0,0,"",0]
[{"$nulls":4},"14","Неутрошена средства од приватизације из ранијих година",0,0,"",0]
[{"$nulls":4},"15","Неутрошена средства донација из ранијих година",0,0,"",0]
[{"$nulls":5},"Укупно за главу 3.10.:",{"$f":"SUM(G532:G544)","v":0},{"$f":"SUM(H532:H544)","v":0},{"$f":"IF(OR(ISBLANK(G545),G545=0),\"\",H545/G545)","v":""},{"$f":"H545-G545","v":0}]
[null,"3.11.",{"$nulls":3},"Буџетски фонд за заштиту животне средине",null,null,{"$f":"IF(OR(ISBLANK(G546),G546=0),\"\",H546/G546)","v":""}]
[null,null,560,null,null,"Заштита животне средине некласификована на другом месту",null,null,""]
[{"$nulls":3},144,423,"Услуге по уговору",null,null,"",{"$f":"H548-G548","v":0}]
[{"$nulls":3},145,424,"Специјализоване услуге",null,null,"",{"$f":"H549-G549","v":0}]
[{"$nulls":3},146,451,"Субвенције јавним нефинансијским предузећима и организацијама",null,null,"",{"$f":"H550-G550","v":0}]
[{"$nulls":5},"Извори финансирања за функцију 560:",null,null,""]
[{"$nulls":4},"01","Приходи из буџета",null,null,"",{"$f":"H552-G552","v":0}]
[{"$nulls":4},"04","Сопствени приходи буџетских корисника",null,null,"",0]
[{"$nulls":4},"05","Донације од иностраних земаља",null,null,"",0]
[{"$nulls":4},"06","Донације од међународних организација",null,null,"",0]
[{"$nulls":4},"07","Трансфери од других нивоа власти",null,null,"",0]
[{"$nulls":4},"08","Добровољни трансфери од физичких и правних лица",null,null,"",0]
[{"$nulls":4},"09","Примања од продаје нефинансијске имовине",null,null,"",0]
[{"$nulls":4},"10","Примања од домаћих задуживања",null,null,"",0]
[{"$nulls":4},"11","Примања од иностраних задуживања",null,null,"",0]
[{"$nulls":4},"12","Примања од отплате датих кредита и продаје финансијске имовине",null,null,"",0]
[{"$nulls":4},"13","Нераспоређени вишак прихода из ранијих година",null,null,"",0]
[{"$nulls":4},"14","Неутрошена средства од приватизације из ранијих година",null,null,"",0]
[{"$nulls":4},"15","Неутрошена средства донација из ранијих година",null,null,"",0]
[{"$nulls":5},"Укупно за функцију 560:",{"$f":"SUM(G552:G564)","v":0},{"$f":"SUM(H552:H564)","v":0},{"$f":"IF(OR(ISBLANK(G565),G565=0),\"\",H565/G565)","v":""},{"$f":"H565-G565","v":0}]
[{"$nulls":5},"Извори финансирања за главу 3.11:",null,null,""]
[{"$nulls":4},"01","Приходи из буџета",{"$f":"G552","v":0},{"$f":"H552","v":0},{"$f":"IF(OR(ISBLANK(G567),G567=0),\"\",H567/G567)","v":""},{"$f":"H567-G567","v":0}]
[{"$nulls":4},"04","Сопствени приходи буџетских корисника",{"$f":"G553","v":0},0,"",0]
[{"$nulls":4},"05","Донације од иностраних земаља",0,0,"",0]
[{"$nulls":4},"06","Донације од међународних организација",0,0,"",0]
[{"$nulls":4},"07","Трансфери од других нивоа власти",0,0,"",0]
[{"$nulls":4},"08","Добровољни трансфери од физичких и правних лица",0,0,"",0]
[{"$nulls":4},"09","Примања од продаје нефинансијске имовине",0,0,"",0]
[{"$nulls":4},"10","Примања од домаћих задуживања",0,0,"",0]
[{"$nulls":4},"11","Примања од иностраних задуживања",0,0,"",0]
[{"$nulls":4},"12","Примања од отплате датих кредита и продаје финансијске имовине",0,0,"",0]
[{"$nulls":4},"13","Нераспоређени вишак прихода из ранијих година",0,0,"",0]
[{"$nulls":4},"14","Неутрошена средства од приватизације из ранијих година",0,0,"",0]
[{"$nulls":4},"15","Неутрошена средства донација из ранијих година",0,0,"",0]
[{"$nulls":5},"Укупно за главу 3.11:",{"$f":"SUM(G567:G579)","v":0},{"$f":"SUM(H567:H579)","v":0},"",{"$f":"H580-G580","v":0}]
[{"$nulls":5},"Извори финансирања за раздео 3:",null,null,""]
[{"$nulls":4},"01","Приходи из буџета",{"$f":"G567+G532+G482+G449+G415+G364+G313+G279+G245+G194+G150","v":0},{"$f":"H567+H532+H482+H449+H415+H364+H313+H279+H245+H194+H150","v":0},"",{"$f":"H582-G582","v":0}]
[{"$nulls":4},"04","Сопствени приходи буџетских корисника",{"$f":"G568+G533+G483+G450+G416+G365+G314+G280+G246+G195+G151","v":0},0,"",0]
[{"$nulls":4},"05","Донације од иностраних земаља",0,0,"",0]
[{"$nulls":4},"06","Донације од међународних организација",0,0,"",0]
[{"$nulls":4},"07","Трансфери од других нивоа власти",0,0,"",0]
[{"$nulls":4},"08","Добровољни трансфери од физичких и правних лица",0,0,"",0]
[{"$nulls":4},"09","Примања од продаје нефинансијске имовине",0,0,"",0]
[{"$nulls":4},"10","Примања од домаћих задуживања",0,0,"",0]
[{"$nulls":4},"11","Примања од иностраних задуживања",0,0,"",0]
[{"$nulls":4},"12","Примања од отплате датих кредита и продаје финансијске имовине",0,0,"",0]
[{"$nulls":4},"13","Нераспоређени вишак прихода из ранијих година",0,0,"",0]
[{"$nulls":4},"14","Неутрошена средства од приватизације из ранијих година",0,0,"",0]
[{"$nulls":4},"15","Неутрошена средства донација из ранијих година",0,0,"",0]
[{"$nulls":5},"Укупно за раздео 3:",{"$f":"SUM(G582:G594)","v":0},{"$f":"SUM(H582:H594)","v":0},"",{"$f":"H595-G595","v":0}]
[4,{"$nulls":4},"ЈАВНИ ПРАВОБРАНИЛАЦ "]
[null,null,330,null,null,"Судови",null,null,""]
[{"$nulls":3},147,411,"Плате, додаци и накнаде запослених",null,null,"",{"$f":"H598-G598","v":0}]
[{"$nulls":3},148,412,"Социјални доприноси на терет послодавца",null,null,"",{"$f":"H599-G599","v":0}]
[{"$nulls":3},149,413,"Накнаде у натури",null,null,"",{"$f":"H600-G600","v":0}]
[{"$nulls":3},150,414,"Социјална давања запосленима",null,null,"",{"$f":"H601-G601","v":0}]
[{"$nulls":3},151,416,"Награде запосленима и остали посебни расходи",null,null,"",{"$f":"H602-G602","v":0}]
[{"$nulls":5},"Извори финансирања за функцију 330:",null,null,""]
[{"$nulls":4},"01","Приходи из буџета",null,null,{"$f":"IF(OR(ISBLANK(G604),G604=0),\"\",H604/G604)","v":""},{"$f":"H604-G604","v":0}]
[{"$nulls":4},"04","Сопствени приходи буџетских корисника",null,null,"",0]
[{"$nulls":4},"05","Донације од иностраних земаља",null,null,"",0]
[{"$nulls":4},"06","Донације од међународних организација",null,null,"",0]
[{"$nulls":4},"07","Трансфери од других нивоа власти",null,null,"",0]
[{"$nulls":4},"08","Добровољни трансфери од физичких и правних лица",null,null,"",0]
[{"$nulls":4},"09","Примања од продаје нефинансијске имовине",null,null,"",0]
[{"$nulls":4},"10","Примања од домаћих задуживања",null,null,"",0]
[{"$nulls":4},"11","Примања од иностраних задуживања",null,null,"",0]
[{"$nulls":4},"12","Примања од отплате датих кредита и продаје финансијске имовине",null,null,"",0]
[{"$nulls":4},"13","Нераспоређени вишак прихода из ранијих година",null,null,"",0]
[{"$nulls":4},"14","Неутрошена средства од приватизације из ранијих година",null,null,"",0]
[{"$nulls":4},"15","Неутрошена средства донација из ранијих година",null,null,"",0]
[{"$nulls":5},"Укупно за функцију 330:",{"$f":"SUM(G604:G616)","v":0},{"$f":"SUM(H604:H616)","v":0},"",{"$f":"H617-G617","v":0}]
[{"$nulls":5},"Извори финансирања за раздео 4:"]
[{"$nulls":4},"01","Приходи из буџета",{"$f":"G604","v":0},{"$f":"H604","v":0},{"$f":"IF(OR(ISBLANK(G619),G619=0),\"\",H619/G619)","v":""},{"$f":"H619-G619","v":0}]
[{"$nulls":4},"04","Сопствени приходи буџетских корисника",{"$f":"G605","v":0},0,"",0]
[{"$nulls":4},"05","Донације од иностраних земаља",0,0,"",0]
[{"$nulls":4},"06","Донације од међународних организација",0,0,"",0]
[{"$nulls":4},"07","Трансфери од других нивоа власти",0,0,"",0]
[{"$nulls":4},"08","Добровољни трансфери од физичких и правних лица",0,0,"",0]
[{"$nulls":4},"09","Примања од продаје нефинансијске имовине",0,0,"",0]
[{"$nulls":4},"10","Примања од домаћих задуживања",0,0,"",0]
[{"$nulls":4},"11","Примања од иностраних задуживања",0,0,"",0]
[{"$nulls":4},"12","Примања од отплате датих кредита и продаје финансијске имовине",0,0,"",0]
[{"$nulls":4},"13","Нераспоређени вишак прихода из ранијих година",0,0,"",0]
[{"$nulls":4},"14","Неутрошена средства од приватизације из ранијих година",0,0,"",0]
[{"$nulls":4},"15","Неутрошена средства донација из ранијих година",0,0,"",0]
[{"$nulls":5},"Укупно за раздео 4:",{"$f":"SUM(G619:G631)","v":0},{"$f":"SUM(H619:H631)","v":0},{"$f":"IF(OR(ISBLANK(G632),G632=0),\"\",H632/G632)","v":""},{"$f":"H632-G632","v":0}]
[{"$nulls":5},"ИЗВОРИ ФИНАНСИРАЊА   ЗА РАЗДЕО  1 – 4:",null,null,""]
[{"$nulls":4},"01","Приходи из буџета",{"$f":"G619+G582+G77+G33","v":0},0,"",{"$f":"H634-G634","v":0}]
[{"$nulls":4},"04","Сопствени приходи буџетских корисника",0,0,"",0]
[{"$nulls":4},"05","Донације од иностраних земаља",0,0,"",0]
[{"$nulls":4},"06","Донације од међународних организација",0,0,"",0]
[{"$nulls":4},"07","Трансфери од других нивоа власти",0,0,"",0]
[{"$nulls":4},"08","Добровољни трансфери од физичких и правних лица",0,0,"",0]
[{"$nulls":4},"09","Примања од продаје нефинансијске имовине",0,0,"",0]
[{"$nulls":4},"10","Примања од домаћих задуживања",0,0,"",0]
[{"$nulls":4},"11","Примања од иностраних задуживања",0,0,"",0]
[{"$nulls":4},"12","Примања од отплате датих кредита и продаје финансијске имовине",0,0,"",0]
[{"$nulls":4},"13","Нераспоређени вишак прихода из ранијих година",0,0,"",0]
[{"$nulls":4},"14","Неутрошена средства од приватизације из ранијих година",0,0,"",0]
[{"$nulls":4},"15","Неутрошена средства донација из ранијих година",0,0,"",0]
[{"$nulls":5},"Укупно раздео 1. – 4. ",{"$f":"SUM(G634:G646)","v":0},{"$f":"SUM(H634:H646)","v":0},"",{"$f":"H647-G647","v":0}]
[{"$nulls":5},"УКУПНИ РАСХОДИ:",{"$f":"G647","v":0},{"$f":"H647","v":0},"",{"$f":"H648-G648","v":0}]
[]
["* Нпр. накнаде члановима комисија СО и остале услуге по уговору."]

{"sheet":"stampa","index":6,"n_rows":188,"n_cols":38,"rows_kept":188,"merged":[[1,33,1,37],[21,1,21,28],[21,29,21,37],[23,1,23,28],[23,29,23,37],[24,1,25,28],[24,29,25,37],[26,1,26,28],[26,29,26,37],[27,1,27,28],[62,18,62,22],[63,18,63,22],[65,18,65,22],[69,18,69,22],[76,18,76,22],[81,23,81,27],[81,28,81,32],[82,1,82,17],[82,18,82,22],[82,23,82,27],[82,28,82,32],[87,1,87,17],[87,18,87,22],[87,23,87,27],[87,28,87,32],[87,33,87,37],[88,1,88,17],[88,18,88,22],[88,23,88,27],[89,28,89,32],[91,1,91,17],[91,23,91,27],[93,1,93,17],[93,18,93,22],[93,23,93,27],[93,28,93,32],[93,33,93,37],[94,1,94,17],[94,18,94,22],[94,23,94,27],[94,28,94,32],[94,33,94,37],[107,1,107,37],[109,1,109,37],[111,1,111,37],[113,29,113,34],[114,2,114,25],[114,26,114,34],[115,2,115,25],[115,26,115,34],[116,2,116,25],[116,26,116,34],[117,2,117,25],[117,26,117,34],[119,1,119,37],[121,1,121,25],[121,26,121,34],[122,1,122,25],[122,26,122,34],[123,1,123,25],[123,26,123,34],[124,1,124,25],[124,26,124,34],[125,1,125,25],[125,26,125,34],[126,1,126,25],[126,26,126,34],[127,1,127,25],[127,26,127,34],[128,1,128,25],[128,26,128,34],[129,1,129,25],[129,26,129,34],[130,1,130,25],[130,26,130,34],[131,1,131,25],[131,26,131,34],[132,1,132,25],[132,26,132,34],[140,1,140,37],[143,1,143,37],[322,26,322,29],[322,30,322,33],[322,34,322,37],[323,1,323,2],[323,3,323,4],[323,5,323,6],[323,7,323,8],[323,26,323,29],[323,30,323,33],[324,1,324,2],[324,3,324,4],[324,5,324,6],[324,7,324,8],[324,9,324,10],[324,11,324,21],[324,22,324,25],[324,26,324,29],[324,30,324,33],[324,34,324,37],[325,1,325,2],[325,3,325,4],[325,5,325,6],[325,7,325,8],[325,9,325,10],[325,11,325,21],[325,22,325,25],[325,26,325,29],[325,30,325,33],[325,34,325,37],[326,1,326,2],[326,3,326,4],[326,5,326,6],[326,7,326,8],[326,9,326,10],[326,11,326,21],[326,22,326,25],[326,26,326,29],[326,30,326,33],[326,34,326,37],[327,1,327,2],[327,3,327,4],[327,5,327,6],[327,7,327,8],[327,9,327,10],[327,11,327,21],[327,22,327,25],[327,26,327,29],[327,30,327,33],[327,34,327,37],[328,1,328,2],[328,3,328,4],[328,5,328,6],[328,7,328,8],[328,9,328,10],[328,11,328,21],[328,22,328,25],[328,26,328,29],[328,30,328,33],[328,34,328,37],[329,1,329,2],[329,3,329,4],[329,5,329,6],[329,7,329,8],[329,9,329,10],[329,11,329,21],[329,22,329,25],[329,26,329,29],[329,30,329,33],[329,34,329,37],[330,1,330,2],[330,3,330,4],[330,5,330,6],[330,7,330,8],[330,9,330,10],[330,11,330,21],[330,22,330,25],[330,26,330,29],[330,30,330,33],[330,34,330,37],[331,1,331,2],[331,3,331,4],[331,5,331,6],[331,7,331,8],[331,9,331,10],[331,11,331,21],[331,22,331,25],[331,26,331,29],[331,30,331,33],[331,34,331,37],[332,1,332,2],[332,3,332,4],[332,5,332,6],[332,7,332,8],[332,9,332,10],[332,11,332,21],[332,22,332,25],[332,26,332,29],[332,30,332,33],[332,34,332,37],[333,1,333,2],[333,3,333,4],[333,5,333,6],[333,7,333,8],[333,9,333,10],[333,11,333,21],[333,22,333,25],[333,26,333,29],[333,30,333,33],[333,34,333,37],[334,1,334,2],[334,3,334,4],[334,5,334,6],[334,7,334,8],[334,9,334,10],[334,11,334,21],[334,22,334,25],[334,26,334,29],[334,30,334,33],[334,34,334,37],[335,1,335,2],[335,3,335,4],[335,5,335,6],[335,7,335,8],[335,9,335,10],[335,11,335,21],[335,22,335,25],[335,26,335,29],[335,30,335,33],[335,34,335,37],[336,1,336,2],[336,3,336,4],[336,5,336,6],[336,7,336,8],[336,9,336,10],[336,11,336,21],[336,22,336,25],[336,26,336,29],[336,30,336,33],[336,34,336,37],[337,1,337,2],[337,3,337,4],[337,5,337,6],[337,7,337,8],[337,9,337,10],[337,11,337,21],[337,22,337,25],[337,26,337,29],[337,30,337,33],[337,34,337,37],[338,1,338,2],[338,3,338,4],[338,5,338,6],[338,7,338,8],[338,9,338,10],[338,11,338,21],[338,22,338,25],[338,26,338,29],[338,30,338,33],[338,34,338,37],[339,1,339,2],[339,3,339,4],[339,5,339,6],[339,7,339,8],[339,9,339,10],[339,11,339,21],[339,22,339,25],[339,26,339,29],[339,30,339,33],[339,34,339,37],[340,1,340,2],[340,3,340,4],[340,5,340,6],[340,7,340,8],[340,9,340,10],[340,11,340,21],[340,22,340,25],[340,26,340,29],[340,30,340,33],[340,34,340,37],[341,1,341,2],[341,3,341,4],[341,5,341,6],[341,7,341,8],[341,9,341,10],[341,11,341,21],[341,22,341,25],[341,26,341,29],[341,30,341,33],[341,34,341,37],[342,1,342,2],[342,3,342,4],[342,5,342,6],[342,7,342,8],[342,9,342,10],[342,11,342,21],[342,22,342,25],[342,26,342,29],[342,30,342,33],[342,34,342,37],[343,1,343,2],[343,3,343,4],[343,5,343,6],[343,7,343,8],[343,9,343,10],[343,11,343,21],[343,22,343,25],[343,26,343,29],[343,30,343,33],[343,34,343,37],[344,1,344,2],[344,3,344,4],[344,5,344,6],[344,7,344,8],[344,9,344,10],[344,11,344,21],[344,22,344,25],[344,26,344,29],[344,30,344,33],[344,34,344,37],[345,1,345,2],[345,3,345,4],[345,5,345,6],[345,7,345,8],[345,9,345,10],[345,11,345,21],[345,22,345,25],[345,26,345,29],[345,30,345,33],[345,34,345,37],[346,1,346,2],[346,3,346,4],[346,5,346,6],[346,7,346,8],[346,9,346,10],[346,11,346,21],[346,22,346,25],[346,26,346,29],[346,30,346,33],[346,34,346,37],[347,1,347,2],[347,3,347,4],[347,5,347,6],[347,7,347,8],[347,9,347,10],[347,11,347,21],[347,22,347,25],[347,26,347,29],[347,30,347,33],[347,34,347,37],[348,1,348,2],[348,3,348,4],[348,5,348,6],[348,7,348,8],[348,9,348,10],[348,11,348,21],[348,22,348,25],[348,26,348,29],[348,30,348,33],[348,34,348,37],[349,1,349,2],[349,3,349,4],[349,5,349,6],[349,7,349,8],[349,9,349,10],[349,11,349,21],[349,22,349,25],[349,26,349,29],[349,30,349,33],[349,34,349,37],[350,1,350,2],[350,3,350,4],[350,5,350,6],[350,7,350,8],[350,9,350,10],[350,11,350,21],[350,22,350,25],[350,26,350,29],[350,30,350,33],[350,34,350,37],[351,1,351,2],[351,3,351,4],[351,5,351,6],[351,7,351,8],[351,9,351,10],[351,11,351,21],[351,22,351,25],[351,26,351,29],[351,30,351,33],[351,34,351,37],[352,1,352,2],[352,3,352,4],[352,5,352,6],[352,7,352,8],[352,9,352,10],[352,11,352,21],[352,22,352,25],[352,26,352,29],[352,30,352,33],[352,34,352,37],[353,1,353,2],[353,3,353,4],[353,5,353,6],[353,7,353,8],[353,9,353,10],[353,11,353,21],[353,22,353,25],[353,26,353,29],[353,30,353,33],[353,34,353,37],[354,1,354,2],[354,3,354,4],[354,5,354,6],[354,7,354,8],[354,9,354,10],[354,11,354,21],[354,22,354,25],[354,26,354,29],[354,30,354,33],[354,34,354,37],[355,1,355,2],[355,3,355,4],[355,5,355,6],[355,7,355,8],[355,9,355,10],[355,11,355,21],[355,22,355,25],[355,26,355,29],[355,30,355,33],[355,34,355,37],[356,1,356,2],[356,3,356,4],[356,5,356,6],[356,7,356,8],[356,9,356,10],[356,11,356,21],[356,22,356,25],[356,26,356,29],[356,30,356,33],[356,34,356,37],[357,1,357,2],[357,3,357,4],[357,5,357,6],[357,7,357,8],[357,9,357,10],[357,11,357,21],[357,22,357,25],[357,26,357,29],[357,30,357,33],[357,34,357,37],[358,1,358,2],[358,3,358,4],[358,5,358,6],[358,7,358,8],[358,9,358,10],[358,11,358,21],[358,22,358,25],[358,26,358,29],[358,30,358,33],[358,34,358,37],[359,1,359,2],[359,3,359,4],[359,5,359,6],[359,7,359,8],[359,9,359,10],[359,11,359,21],[359,22,359,25],[359,26,359,29],[359,30,359,33],[359,34,359,37],[360,1,360,2],[360,3,360,4],[360,5,360,6],[360,7,360,8],[360,9,360,10],[360,11,360,21],[360,22,360,25],[360,26,360,29],[360,30,360,33],[360,34,360,37],[361,1,361,2],[361,3,361,4],[361,5,361,6],[361,7,361,8],[361,9,361,10],[361,11,361,21],[361,22,361,25],[361,26,361,29],[361,30,361,33],[361,34,361,37],[362,1,362,2],[362,3,362,4],[362,5,362,6],[362,7,362,8],[362,9,362,10],[362,11,362,21],[362,22,362,25],[362,26,362,29],[362,30,362,33],[362,34,362,37],[363,1,363,2],[363,3,363,4],[363,5,363,6],[363,7,363,8],[363,9,363,10],[363,11,363,21],[363,22,363,25],[363,26,363,29],[363,30,363,33],[363,34,363,37],[364,1,364,2],[364,3,364,4],[364,5,364,6],[364,7,364,8],[364,9,364,10],[364,11,364,21],[364,22,364,25],[364,26,364,29],[364,30,364,33],[364,34,364,37],[365,1,365,2],[365,3,365,4],[365,5,365,6],[365,7,365,8],[365,9,365,10],[365,11,365,21],[365,22,365,25],[365,26,365,29],[365,30,365,33],[365,34,365,37],[366,1,366,2],[366,3,366,4],[366,5,366,6],[366,7,366,8],[366,9,366,10],[366,11,366,21],[366,22,366,25],[366,26,366,29],[366,30,366,33],[366,34,366,37],[367,1,367,2],[367,3,367,4],[367,5,367,6],[367,7,367,8],[367,9,367,10],[367,11,367,21],[367,22,367,25],[367,26,367,29],[367,30,367,33],[367,34,367,37],[368,1,368,2],[368,3,368,4],[368,5,368,6],[368,7,368,8],[368,9,368,10],[368,11,368,21],[368,22,368,25],[368,26,368,29],[368,30,368,33],[368,34,368,37],[369,1,369,2],[369,3,369,4],[369,5,369,6],[369,7,369,8],[369,9,369,10],[369,11,369,21],[369,22,369,25],[369,26,369,29],[369,30,369,33],[369,34,369,37],[370,1,370,2],[370,3,370,4],[370,5,370,6],[370,7,370,8],[370,9,370,10],[370,11,370,21],[370,22,370,25],[370,26,370,29],[370,30,370,33],[370,34,370,37],[371,1,371,2],[371,3,371,4],[371,5,371,6],[371,7,371,8],[371,9,371,10],[371,11,371,21],[371,22,371,25],[371,26,371,29],[371,30,371,33],[371,34,371,37],[372,1,372,2],[372,3,372,4],[372,5,372,6],[372,7,372,8],[372,9,372,10],[372,11,372,21],[372,22,372,25],[372,26,372,29],[372,30,372,33],[372,34,372,37],[373,1,373,2],[373,3,373,4],[373,5,373,6],[373,7,373,8],[373,9,373,10],[373,11,373,21],[373,22,373,25],[373,26,373,29],[373,30,373,33],[373,34,373,37],[374,1,374,2],[374,3,374,4],[374,5,374,6],[374,7,374,8],[374,9,374,10],[374,11,374,21],[374,22,374,25],[374,26,374,29],[374,30,374,33],[374,34,374,37],[375,1,375,2],[375,3,375,4],[375,5,375,6],[375,7,375,8],[375,9,375,10],[375,11,375,21],[375,22,375,25],[375,26,375,29],[375,30,375,33],[375,34,375,37],[376,1,376,2],[376,3,376,4],[376,5,376,6],[376,7,376,8],[376,9,376,10],[376,11,376,21],[376,22,376,25],[376,26,376,29],[376,30,376,33],[376,34,376,37],[377,1,377,2],[377,3,377,4],[377,5,377,6],[377,7,377,8],[377,9,377,10],[377,11,377,21],[377,22,377,25],[377,26,377,29],[377,30,377,33],[377,34,377,37],[378,1,378,2],[378,3,378,4],[378,5,378,6],[378,7,378,8],[378,9,378,10],[378,11,378,21],[378,22,378,25],[378,26,378,29],[378,30,378,33],[378,34,378,37],[379,1,379,2],[379,3,379,4],[379,5,379,6],[379,7,379,8],[379,9,379,10],[379,11,379,21],[379,22,379,25],[379,26,379,29],[379,30,379,33],[379,34,379,37],[380,1,380,2],[380,3,380,4],[380,5,380,6],[380,7,380,8],[380,9,380,10],[380,11,380,21],[380,22,380,25],[380,26,380,29],[380,30,380,33],[380,34,380,37],[381,1,381,2],[381,3,381,4],[381,5,381,6],[381,7,381,8],[381,9,381,10],[381,11,381,21],[381,22,381,25],[381,26,381,29],[381,30,381,33],[381,34,381,37],[382,1,382,2],[382,3,382,4],[382,5,382,6],[382,7,382,8],[382,9,382,10],[382,11,382,21],[382,22,382,25],[382,26,382,29],[382,30,382,33],[382,34,382,37],[383,1,383,2],[383,3,383,4],[383,5,383,6],[383,7,383,8],[383,9,383,10],[383,11,383,21],[383,22,383,25],[383,26,383,29],[383,30,383,33],[383,34,383,37],[384,1,384,2],[384,3,384,4],[384,5,384,6],[384,7,384,8],[384,9,384,10],[384,11,384,21],[384,22,384,25],[384,26,384,29],[384,30,384,33],[384,34,384,37],[385,1,385,2],[385,3,385,4],[385,5,385,6],[385,7,385,8],[385,9,385,10],[385,11,385,21],[385,22,385,25],[385,26,385,29],[385,30,385,33],[385,34,385,37],[386,1,386,2],[386,3,386,4],[386,5,386,6],[386,7,386,8],[386,9,386,10],[386,11,386,21],[386,22,386,25],[386,26,386,29],[386,30,386,33],[386,34,386,37],[387,1,387,2],[387,3,387,4],[387,5,387,6],[387,7,387,8],[387,9,387,10],[387,11,387,21],[387,22,387,25],[387,26,387,29],[387,30,387,33],[387,34,387,37],[388,1,388,2],[388,3,388,4],[388,5,388,6],[388,7,388,8],[388,9,388,10],[388,11,388,21],[388,22,388,25],[388,26,388,29],[388,30,388,33],[388,34,388,37],[389,1,389,2],[389,3,389,4],[389,5,389,6],[389,7,389,8],[389,9,389,10],[389,11,389,21],[389,22,389,25],[389,26,389,29],[389,30,389,33],[389,34,389,37],[390,1,390,2],[390,3,390,4],[390,5,390,6],[390,7,390,8],[390,9,390,10],[390,11,390,21],[390,22,390,25],[390,26,390,29],[390,30,390,33],[390,34,390,37],[391,1,391,2],[391,3,391,4],[391,5,391,6],[391,7,391,8],[391,9,391,10],[391,11,391,21],[391,22,391,25],[391,26,391,29],[391,30,391,33],[391,34,391,37],[392,1,392,2],[392,3,392,4],[392,5,392,6],[392,7,392,8],[392,9,392,10],[392,11,392,21],[392,22,392,25],[392,26,392,29],[392,30,392,33],[392,34,392,37],[393,1,393,2],[393,3,393,4],[393,5,393,6],[393,7,393,8],[393,9,393,10],[393,11,393,21],[393,22,393,25],[393,26,393,29],[393,30,393,33],[393,34,393,37],[394,1,394,2],[394,3,394,4],[394,5,394,6],[394,7,394,8],[394,9,394,10],[394,11,394,21],[394,22,394,25],[394,26,394,29],[394,30,394,33],[394,34,394,37],[395,1,395,2],[395,3,395,4],[395,5,395,6],[395,7,395,8],[395,9,395,10],[395,11,395,21],[395,22,395,25],[395,26,395,29],[395,30,395,33],[395,34,395,37],[396,1,396,2],[396,3,396,4],[396,5,396,6],[396,7,396,8],[396,9,396,10],[396,11,396,21],[396,22,396,25],[396,26,396,29],[396,30,396,33],[396,34,396,37],[397,1,397,2],[397,3,397,4],[397,5,397,6],[397,7,397,8],[397,9,397,10],[397,11,397,21],[397,22,397,25],[397,26,397,29],[397,30,397,33],[397,34,397,37],[398,1,398,2],[398,3,398,4],[398,5,398,6],[398,7,398,8],[398,9,398,10],[398,11,398,21],[398,22,398,25],[398,26,398,29],[398,30,398,33],[398,34,398,37],[399,1,399,2],[399,3,399,4],[399,5,399,6],[399,7,399,8],[399,9,399,10],[399,11,399,21],[399,22,399,25],[399,26,399,29],[399,30,399,33],[399,34,399,37],[400,1,400,2],[400,3,400,4],[400,5,400,6],[400,7,400,8],[400,9,400,10],[400,11,400,21],[400,22,400,25],[400,26,400,29],[400,30,400,33],[400,34,400,37],[401,1,401,2],[401,3,401,4],[401,5,401,6],[401,7,401,8],[401,9,401,10],[401,11,401,21],[401,22,401,25],[401,26,401,29],[401,30,401,33],[401,34,401,37],[402,1,402,2],[402,3,402,4],[402,5,402,6],[402,7,402,8],[402,9,402,10],[402,11,402,21],[402,22,402,25],[402,26,402,29],[402,30,402,33],[402,34,402,37],[403,1,403,2],[403,3,403,4],[403,5,403,6],[403,7,403,8],[403,9,403,10],[403,11,403,21],[403,22,403,25],[403,26,403,29],[403,30,403,33],[403,34,403,37],[404,1,404,2],[404,3,404,4],[404,5,404,6],[404,7,404,8],[404,9,404,10],[404,11,404,21],[404,22,404,25],[404,26,404,29],[404,30,404,33],[404,34,404,37],[405,1,405,2],[405,3,405,4],[405,5,405,6],[405,7,405,8],[405,9,405,10],[405,11,405,21],[405,22,405,25],[405,26,405,29],[405,30,405,33],[405,34,405,37],[406,1,406,2],[406,3,406,4],[406,5,406,6],[406,7,406,8],[406,9,406,10],[406,11,406,21],[406,22,406,25],[406,26,406,29],[406,30,406,33],[406,34,406,37],[407,1,407,2],[407,3,407,4],[407,5,407,6],[407,7,407,8],[407,9,407,10],[407,11,407,21],[407,22,407,25],[407,26,407,29],[407,30,407,33],[407,34,407,37],[408,1,408,2],[408,3,408,4],[408,5,408,6],[408,7,408,8],[408,9,408,10],[408,11,408,21],[408,22,408,25],[408,26,408,29],[408,30,408,33],[408,34,408,37],[409,1,409,2],[409,3,409,4],[409,5,409,6],[409,7,409,8],[409,9,409,10],[409,11,409,21],[409,22,409,25],[409,26,409,29],[409,30,409,33],[409,34,409,37],[410,1,410,2],[410,3,410,4],[410,5,410,6],[410,7,410,8],[410,9,410,10],[410,11,410,21],[410,22,410,25],[410,26,410,29],[410,30,410,33],[410,34,410,37],[411,1,411,2],[411,3,411,4],[411,5,411,6],[411,7,411,8],[411,9,411,10],[411,11,411,21],[411,22,411,25],[411,26,411,29],[411,30,411,33],[411,34,411,37],[412,1,412,2],[412,3,412,4],[412,5,412,6],[412,7,412,8],[412,9,412,10],[412,11,412,21],[412,22,412,25],[412,26,412,29],[412,30,412,33],[412,34,412,37],[413,1,413,2],[413,3,413,4],[413,5,413,6],[413,7,413,8],[413,9,413,10],[413,11,413,21],[413,22,413,25],[413,26,413,29],[413,30,413,33],[413,34,413,37],[414,1,414,2],[414,3,414,4],[414,5,414,6],[414,7,414,8],[414,9,414,10],[414,11,414,21],[414,22,414,25],[414,26,414,29],[414,30,414,33],[414,34,414,37]],"merged_total":2137,"flags":["merged_cut"]}
[]
[]
[null,"       На основу члана  76.  Закона о буџетском систему („Службени гласник РС”, бр. 54/2009, 73/2010, ....., 92/2023 и 94/2024), и члана 40. Статута општине Владимирци („Службени лист града Шапца и општина: Богатић, Владимирци и Коцељева”, бр. 6/2019, 12/2021 и 9/2025), СКУПШТИНА ОПШТИНЕ ВЛАДИМИРЦИ, на седници одржаној дана 14.11.2025. године, донела је"]
{"$rows_empty":7}
[null,"З А К Љ У Ч А К"]
[null,"О УСВАЈАЊУ ИЗВРШЕЊА  БУЏЕТА ОПШТИНЕ ВЛАДИМИРЦИ  за период 01.01. - 30.06.2025. године"]
[]
[]
[null,"I. ОПШТИ ДЕО"]
[]
[]
[]
[null,"        Остварени текући приходи и примања и извршени расходи и издаци буџета општине Владимирци за период 01.01.-30.06. 2022. године, износе у  динарима, и то: "]
[]
[null,"        I. Укупно остварени текући приходи, примања"]
[null,"          (буџетска средства и средства из осталих извора) ...................................................._________________",{"$nulls":27},{"v":319219257.83,"d":"319,219,257.83"}]
[null,"        II. Укупно извршени текући расходи и издаци (буџетска  средства и "]
[null,"           средства из осталих извора) ......................................................................................._________________  ",{"$nulls":27},{"v":291624652.15,"d":"291,624,652.15"}]
[null,"        III. Разлика укупних прихода и примања и укупних расхода и издатака (суфицит)",{"$nulls":27},{"$f":"+AD22-AD24","v":{"v":27594605.680000007,"d":"27,594,605.68"}}]
[]
[null,"         IV Укупно извршена пренета неутрошена средства из претходне године - извршени расходи из пренетих неутрошених средстава",{"$nulls":27},{"v":24738131.19,"d":"24,738,131.19"}]
[null,"        V. Разлика укупних прихода и примања и остварених пренетих неутрошених средстава и укупних расхода и издатака (суфицит)",{"$nulls":27},{"$f":"AD25+AD27","v":{"v":52332736.870000005,"d":"52,332,736.87"}}]
[]
[null,"Утврђени суфицит у периоду 01.01. - 30.06.2025. године из свих извора финансирања утврђен је на следећи начин:"]
[]
[]
[{"$nulls":30},"у  динарима"]
[null," Опис",{"$nulls":30},"Извршено у периоду 01.01. - 30.06.2025."]
[null,"1. Укупно остварени приходи и примања по основу продаје нефинансијске имовине                       (класа 7 + класа 8)",{"$nulls":30},{"$f":"AD22","v":{"v":319219257.83,"d":"319,219,257.83"}}]
[null,"2. Укупно извршени расходи и издаци за набавку нефинансијске имовине                                   (класа 4 + класа 5)",{"$nulls":30},{"$f":"AD24-AG43","v":{"v":291624652.15,"d":"291,624,652.15"}}]
[null,"3. Вишак прихода – буџетски суфицит (ред. бр. 1 – ред. бр. 2)",{"$nulls":30},{"$f":"AG35-AG36","v":{"v":27594605.680000007,"d":"27,594,605.68"}}]
[null,"Кориговање вишка прихода – буџетски суфицит:",{"$nulls":30},""]
[null,"  – део нераспоређеног вишка прихода и примања из ранијих година који је коришћен за покриће расхода и издатака текуће године (Расходи из извора финансирања 17)",{"$nulls":30},{"$f":"AD27-AG40","v":{"v":24738131.19,"d":"24,738,131.19"}}]
[null,"  – део пренетих неутрошених средстава из ранијих година коришћен за покриће расхода и издатака текуће године"]
[null,"  – износ расхода и издатака за нефинансијску имовину, финансираних из кредита",{"$nulls":30},""]
[null,"  – износ приватизационих примања коришћен за покриће расхода и издатака текуће године",{"$nulls":30},""]
[null,"  – утрошена средства текућих прихода и примања од продаје нефинансијске имовине за отплату обавеза по кредитима ( Класа 6)"]
[null,"  – утрошена средства текућих прихода и примања од продаје нефинансијске имовине за набавку финансијске имовине",{"$nulls":30},""]
[null,"4. Кориговани вишак прихода – суфицит",{"$nulls":30},{"$f":"AG37+AG39+AG40-AG43","v":{"v":52332736.870000005,"d":"52,332,736.87"}}]
[]
[]
[null,"       Буџетски суфицит (дефицит), и укупни фискални резултат буџета у периоду 01.01. - 30.06.2025. године из свих извора финансирања утврђени су:"]
[{"$nulls":31},"у  динарима"]
[{"$nulls":18},"Економска класифи-кација","Економска класификација","Економска класификација","Економска класификација","Економска класификација","Планирано ","Планирано ","Планирано ","Планирано ","Планирано ","Остварено","Остварено","Остварено","Остварено","Остварено","%           Остварено/ План","%    Остварено/ Извршено","%    Остварено/ Извршено","%    Остварено/ Извршено","%    Остварено/ Извршено"]
[null,1,1,1,1,1,1,1,1,1,1,1,1,1,1,1,1,1,2,2,2,2,2,3,3,3,3,3,4,4,4,4,4,5,5,5,5,5]
[null,"А. РАЧУН ПРИХОДА И ПРИМАЊА, РАСХОДА И ИЗДАТАКА БУЏЕТА ОПШТИНЕ","А. РАЧУН ПРИХОДА И ПРИМАЊА, РАСХОДА И ИЗДАТАКА БУЏЕТА ОПШТИНЕ","А. РАЧУН ПРИХОДА И ПРИМАЊА, РАСХОДА И ИЗДАТАКА БУЏЕТА ОПШТИНЕ","А. РАЧУН ПРИХОДА И ПРИМАЊА, РАСХОДА И ИЗДАТАКА БУЏЕТА ОПШТИНЕ","А. РАЧУН ПРИХОДА И ПРИМАЊА, РАСХОДА И ИЗДАТАКА БУЏЕТА ОПШТИНЕ","А. РАЧУН ПРИХОДА И ПРИМАЊА, РАСХОДА И ИЗДАТАКА БУЏЕТА ОПШТИНЕ","А. РАЧУН ПРИХОДА И ПРИМАЊА, РАСХОДА И ИЗДАТАКА БУЏЕТА ОПШТИНЕ","А. РАЧУН ПРИХОДА И ПРИМАЊА, РАСХОДА И ИЗДАТАКА БУЏЕТА ОПШТИНЕ","А. РАЧУН ПРИХОДА И ПРИМАЊА, РАСХОДА И ИЗДАТАКА БУЏЕТА ОПШТИНЕ","А. РАЧУН ПРИХОДА И ПРИМАЊА, РАСХОДА И ИЗДАТАКА БУЏЕТА ОПШТИНЕ","А. РАЧУН ПРИХОДА И ПРИМАЊА, РАСХОДА И ИЗДАТАКА БУЏЕТА ОПШТИНЕ","А. РАЧУН ПРИХОДА И ПРИМАЊА, РАСХОДА И ИЗДАТАКА БУЏЕТА ОПШТИНЕ","А. РАЧУН ПРИХОДА И ПРИМАЊА, РАСХОДА И ИЗДАТАКА БУЏЕТА ОПШТИНЕ","А. РАЧУН ПРИХОДА И ПРИМАЊА, РАСХОДА И ИЗДАТАКА БУЏЕТА ОПШТИНЕ","А. РАЧУН ПРИХОДА И ПРИМАЊА, РАСХОДА И ИЗДАТАКА БУЏЕТА ОПШТИНЕ","А. РАЧУН ПРИХОДА И ПРИМАЊА, РАСХОДА И ИЗДАТАКА БУЏЕТА ОПШТИНЕ","А. РАЧУН ПРИХОДА И ПРИМАЊА, РАСХОДА И ИЗДАТАКА БУЏЕТА ОПШТИНЕ"]
[null,"I. УКУПНИ ПРИХОДИ И ПРИМАЊА","I. УКУПНИ ПРИХОДИ И ПРИМАЊА","I. УКУПНИ ПРИХОДИ И ПРИМАЊА","I. УКУПНИ ПРИХОДИ И ПРИМАЊА","I. УКУПНИ ПРИХОДИ И ПРИМАЊА","I. УКУПНИ ПРИХОДИ И ПРИМАЊА","I. УКУПНИ ПРИХОДИ И ПРИМАЊА","I. УКУПНИ ПРИХОДИ И ПРИМАЊА","I. УКУПНИ ПРИХОДИ И ПРИМАЊА","I. УКУПНИ ПРИХОДИ И ПРИМАЊА","I. УКУПНИ ПРИХОДИ И ПРИМАЊА","I. УКУПНИ ПРИХОДИ И ПРИМАЊА","I. УКУПНИ ПРИХОДИ И ПРИМАЊА","I. УКУПНИ ПРИХОДИ И ПРИМАЊА","I. УКУПНИ ПРИХОДИ И ПРИМАЊА","I. УКУПНИ ПРИХОДИ И ПРИМАЊА","I. УКУПНИ ПРИХОДИ И ПРИМАЊА","7+8",{"$nulls":4},{"$f":"X54+X66","v":{"v":702967425,"d":"702,967,425.00"}},{"$nulls":4},{"$f":"AC54+AC66","v":{"v":319219257.83,"d":"319,219,257.83"}},{"$nulls":4},{"$f":"AC53/X53","v":{"v":0.45410248964238986,"d":"45.41%"}}]
[null,"Текући приходи:","Текући приходи:","Текући приходи:","Текући приходи:","Текући приходи:","Текући приходи:","Текући приходи:","Текући приходи:","Текући приходи:","Текући приходи:","Текући приходи:","Текући приходи:","Текући приходи:","Текући приходи:","Текући приходи:","Текући приходи:","Текући приходи:",7,7,7,7,7,{"$f":"X55+X59+X64+X62+X63","v":{"v":698137425,"d":"698,137,425.00"}},{"$nulls":4},{"$f":"AC55+AC59+AC64+AC62+AC63+AC65","v":{"v":318728527.83,"d":"318,728,527.83"}},{"$nulls":4},{"$f":"AC54/X54","v":{"v":0.45654124305110844,"d":"45.65%"}}]
[null,"1. Порески приходи","1. Порески приходи","1. Порески приходи","1. Порески приходи","1. Порески приходи","1. Порески приходи","1. Порески приходи","1. Порески приходи","1. Порески приходи","1. Порески приходи","1. Порески приходи","1. Порески приходи","1. Порески приходи","1. Порески приходи","1. Порески приходи","1. Порески приходи","1. Порески приходи",71,71,71,71,71,{"$f":"SUM(X56:AB58)","v":{"v":403114249,"d":"403,114,249.00"}},{"$nulls":4},{"$f":"SUM(AC56:AG58)","v":{"v":176427703.74,"d":"176,427,703.74"}},{"$nulls":4},{"v":0.4376617898713871,"d":"43.77%"}]
[null,"1.1. Порез на доходак, добит и капиталне добитке","1.1. Порез на доходак, добит и капиталне добитке","1.1. Порез на доходак, добит и капиталне добитке","1.1. Порез на доходак, добит и капиталне добитке","1.1. Порез на доходак, добит и капиталне добитке","1.1. Порез на доходак, добит и капиталне добитке","1.1. Порез на доходак, добит и капиталне добитке","1.1. Порез на доходак, добит и капиталне добитке","1.1. Порез на доходак, добит и капиталне добитке","1.1. Порез на доходак, добит и капиталне добитке","1.1. Порез на доходак, добит и капиталне добитке","1.1. Порез на доходак, добит и капиталне добитке","1.1. Порез на доходак, добит и капиталне добитке","1.1. Порез на доходак, добит и капиталне добитке","1.1. Порез на доходак, добит и капиталне добитке","1.1. Порез на доходак, добит и капиталне добитке","1.1. Порез на доходак, добит и капиталне добитке",711,711,711,711,711,{"v":312853578,"d":"312,853,578.00"},{"$nulls":4},{"v":143287823.8,"d":"143,287,823.80"},{"$nulls":4},{"$f":"AC56/X56","v":{"v":0.4580028290422813,"d":"45.80%"}}]
[null,"1.2. Порез на добра и услуге","1.2. Порез на добра и услуге","1.2. Порез на добра и услуге","1.2. Порез на добра и услуге","1.2. Порез на добра и услуге","1.2. Порез на добра и услуге","1.2. Порез на добра и услуге","1.2. Порез на добра и услуге","1.2. Порез на добра и услуге","1.2. Порез на добра и услуге","1.2. Порез на добра и услуге","1.2. Порез на добра и услуге","1.2. Порез на добра и услуге","1.2. Порез на добра и услуге","1.2. Порез на добра и услуге","1.2. Порез на добра и услуге","1.2. Порез на добра и услуге",714,714,714,714,714,{"v":18420000,"d":"18,420,000.00"},{"$nulls":4},{"v":7162047.58,"d":"7,162,047.58"},{"$nulls":4},{"v":0.3888190868621064,"d":"38.88%"}]
[null,"1.3. Остали порески приходи","1.3. Остали порески приходи","1.3. Остали порески приходи","1.3. Остали порески приходи","1.3. Остали порески приходи","1.3. Остали порески приходи","1.3. Остали порески приходи","1.3. Остали порески приходи","1.3. Остали порески приходи","1.3. Остали порески приходи","1.3. Остали порески приходи","1.3. Остали порески приходи","1.3. Остали порески приходи","1.3. Остали порески приходи","1.3. Остали порески приходи","1.3. Остали порески приходи","1.3. Остали порески приходи","712+713+716  +719","712+713+716+719","712+713+716+719","712+713+716+719","712+713+716+719",{"v":71840671,"d":"71,840,671.00"},{"$nulls":4},{"v":25977832.36,"d":"25,977,832.36"},{"$nulls":4},{"v":0.36160342043575844,"d":"36.16%"}]
[null,"2. Непорески приходи, од чега:","2. Непорески приходи, од чега:","2. Непорески приходи, од чега:","2. Непорески приходи, од чега:","2. Непорески приходи, од чега:","2. Непорески приходи, од чега:","2. Непорески приходи, од чега:","2. Непорески приходи, од чега:","2. Непорески приходи, од чега:","2. Непорески приходи, од чега:","2. Непорески приходи, од чега:","2. Непорески приходи, од чега:","2. Непорески приходи, од чега:","2. Непорески приходи, од чега:","2. Непорески приходи, од чега:","2. Непорески приходи, од чега:","2. Непорески приходи, од чега:",74,74,74,74,74,{"v":47763765,"d":"47,763,765.00"},{"$nulls":4},{"v":17210362.53,"d":"17,210,362.53"},{"$nulls":4},{"v":0.3603225694205639,"d":"36.03%"}]
[null,"– наплаћене камате","– наплаћене камате","– наплаћене камате","– наплаћене камате","– наплаћене камате","– наплаћене камате","– наплаћене камате","– наплаћене камате","– наплаћене камате","– наплаћене камате","– наплаћене камате","– наплаћене камате","– наплаћене камате","– наплаћене камате","– наплаћене камате","– наплаћене камате","– наплаћене камате",7411,7411,7411,7411,7411,{"v":3500000,"d":"3,500,000.00"},{"$nulls":4},{"v":1787625.34,"d":"1,787,625.34"},{"$nulls":4},{"v":0.5107500971428571,"d":"51.08%"}]
[null,"– накнада за коришћење простора и грађевинског земљишта","– накнада за коришћење простора и грађевинског земљишта","– накнада за коришћење простора и грађевинског земљишта","– накнада за коришћење простора и грађевинског земљишта","– накнада за коришћење простора и грађевинског земљишта","– накнада за коришћење простора и грађевинског земљишта","– накнада за коришћење простора и грађевинског земљишта","– накнада за коришћење простора и грађевинског земљишта","– накнада за коришћење простора и грађевинског земљишта","– накнада за коришћење простора и грађевинског земљишта","– накнада за коришћење простора и грађевинског земљишта","– накнада за коришћење простора и грађевинског земљишта","– накнада за коришћење простора и грађевинског земљишта","– накнада за коришћење простора и грађевинског земљишта","– накнада за коришћење простора и грађевинског земљишта","– накнада за коришћење простора и грађевинског земљишта","– накнада за коришћење простора и грађевинског земљишта",7415,7415,7415,7415,7415,{"v":22499265,"d":"22,499,265.00"},{"$nulls":4},{"v":4511048.93,"d":"4,511,048.93"},{"$nulls":4},{"v":0.20049761314425157,"d":"20.05%"}]
[null,"3. Меморандумске ставке за рефундацију расхода из претходне године","3. Меморандумске ставке за рефундацију расхода из претходне године","3. Меморандумске ставке за рефундацију расхода из претходне године","3. Меморандумске ставке за рефундацију расхода из претходне године","3. Меморандумске ставке за рефундацију расхода из претходне године","3. Меморандумске ставке за рефундацију расхода из претходне године","3. Меморандумске ставке за рефундацију расхода из претходне године","3. Меморандумске ставке за рефундацију расхода из претходне године","3. Меморандумске ставке за рефундацију расхода из претходне године","3. Меморандумске ставке за рефундацију расхода из претходне године","3. Меморандумске ставке за рефундацију расхода из претходне године","3. Меморандумске ставке за рефундацију расхода из претходне године","3. Меморандумске ставке за рефундацију расхода из претходне године","3. Меморандумске ставке за рефундацију расхода из претходне године","3. Меморандумске ставке за рефундацију расхода из претходне године","3. Меморандумске ставке за рефундацију расхода из претходне године","3. Меморандумске ставке за рефундацију расхода из претходне године",772,772,772,772,772,{"v":394508,"d":"394,508.00"},{"$nulls":4},{"v":350823.53,"d":"350,823.53"},{"$nulls":4},{"$f":"AC62/X62","v":{"v":0.8892684812475287,"d":"88.93%"}}]
[null,"4. Донације","4. Донације","4. Донације","4. Донације","4. Донације","4. Донације","4. Донације","4. Донације","4. Донације","4. Донације","4. Донације","4. Донације","4. Донације","4. Донације","4. Донације","4. Донације","4. Донације","731+732","731+732","731+732","731+732","731+732",{"v":0,"d":"0.00"},{"$nulls":4},{"v":0,"d":"0.00"},{"$nulls":4},{"$f":"AC63/X63","v":{"$error":"#DIV/0!"}}]
[null,"5. Трансфери","5. Трансфери","5. Трансфери","5. Трансфери","5. Трансфери","5. Трансфери","5. Трансфери","5. Трансфери","5. Трансфери","5. Трансфери","5. Трансфери","5. Трансфери","5. Трансфери","5. Трансфери","5. Трансфери","5. Трансфери","5. Трансфери",733,733,733,733,733,{"v":246864903,"d":"246,864,903.00"},{"$nulls":4},{"v":124739638.03,"d":"124,739,638.03"},{"$nulls":4},{"$f":"AC64/X64","v":{"v":0.5052951493473335,"d":"50.53%"}}]
[null,"6. Трансфери између корисника на истом нивоу",{"$nulls":16},78,{"$nulls":4},{"v":0,"d":"0.00"},{"$nulls":4},{"v":0,"d":"0.00"},{"$nulls":4},{"$f":"AC65/X65","v":{"$error":"#DIV/0!"}}]
[null,"Примања од продаје нефинанисјске имовине","Примања од продаје нефинанисјске имовине","Примања од продаје нефинанисјске имовине","Примања од продаје нефинанисјске имовине","Примања од продаје нефинанисјске имовине","Примања од продаје нефинанисјске имовине","Примања од продаје нефинанисјске имовине","Примања од продаје нефинанисјске имовине","Примања од продаје нефинанисјске имовине","Примања од продаје нефинанисјске имовине","Примања од продаје нефинанисјске имовине","Примања од продаје нефинанисјске имовине","Примања од продаје нефинанисјске имовине","Примања од продаје нефинанисјске имовине","Примања од продаје нефинанисјске имовине","Примања од продаје нефинанисјске имовине","Примања од продаје нефинанисјске имовине",8,8,8,8,8,{"v":4830000,"d":"4,830,000.00"},{"$nulls":4},{"v":490730,"d":"490,730.00"},{"$nulls":4},{"$f":"AC66/X66","v":{"v":0.10160041407867494,"d":"10.16%"}}]
[null,"II. УКУПНИ РАСХОДИ И ИЗДАЦИ","II. УКУПНИ РАСХОДИ И ИЗДАЦИ","II. УКУПНИ РАСХОДИ И ИЗДАЦИ","II. УКУПНИ РАСХОДИ И ИЗДАЦИ","II. УКУПНИ РАСХОДИ И ИЗДАЦИ","II. УКУПНИ РАСХОДИ И ИЗДАЦИ","II. УКУПНИ РАСХОДИ И ИЗДАЦИ","II. УКУПНИ РАСХОДИ И ИЗДАЦИ","II. УКУПНИ РАСХОДИ И ИЗДАЦИ","II. УКУПНИ РАСХОДИ И ИЗДАЦИ","II. УКУПНИ РАСХОДИ И ИЗДАЦИ","II. УКУПНИ РАСХОДИ И ИЗДАЦИ","II. УКУПНИ РАСХОДИ И ИЗДАЦИ","II. УКУПНИ РАСХОДИ И ИЗДАЦИ","II. УКУПНИ РАСХОДИ И ИЗДАЦИ","II. УКУПНИ РАСХОДИ И ИЗДАЦИ","II. УКУПНИ РАСХОДИ И ИЗДАЦИ","4+5",{"$nulls":4},{"$f":"X68+X78","v":{"v":771913325,"d":"771,913,325.00"}},{"$nulls":4},{"$f":"AC68+AC78","v":{"v":291624652.15000004,"d":"291,624,652.15"}},{"$nulls":4},{"$f":"AC67/X67","v":{"v":0.37779455633830394,"d":"37.78%"}}]
[null,"Текући расходи:","Текући расходи:","Текући расходи:","Текући расходи:","Текући расходи:","Текући расходи:","Текући расходи:","Текући расходи:","Текући расходи:","Текући расходи:","Текући расходи:","Текући расходи:","Текући расходи:","Текући расходи:","Текући расходи:","Текући расходи:","Текући расходи:",4,4,4,4,4,{"$f":"SUM(X69:AB77)","v":{"v":624157682,"d":"624,157,682.00"}},{"$nulls":4},{"$f":"SUM(AC69:AG77)","v":{"v":264043132.46,"d":"264,043,132.46"}},{"$nulls":4},{"v":0.42303914551515526,"d":"42.30%"}]
[null,"1. Расходи за запослене","1. Расходи за запослене","1. Расходи за запослене","1. Расходи за запослене","1. Расходи за запослене","1. Расходи за запослене","1. Расходи за запослене","1. Расходи за запослене","1. Расходи за запослене","1. Расходи за запослене","1. Расходи за запослене","1. Расходи за запослене","1. Расходи за запослене","1. Расходи за запослене","1. Расходи за запослене","1. Расходи за запослене","1. Расходи за запослене",41,41,41,41,41,{"v":176894665,"d":"176,894,665.00"},{"$nulls":4},{"v":92398422.86,"d":"92,398,422.86"},{"$nulls":4},{"v":0.5223358367534713,"d":"52.23%"}]
[null,"2. Коришћење услуга и роба ","2. Коришћење услуга и роба ","2. Коришћење услуга и роба ","2. Коришћење услуга и роба ","2. Коришћење услуга и роба ","2. Коришћење услуга и роба ","2. Коришћење услуга и роба ","2. Коришћење услуга и роба ","2. Коришћење услуга и роба ","2. Коришћење услуга и роба ","2. Коришћење услуга и роба ","2. Коришћење услуга и роба ","2. Коришћење услуга и роба ","2. Коришћење услуга и роба ","2. Коришћење услуга и роба ","2. Коришћење услуга и роба ","2. Коришћење услуга и роба ",42,42,42,42,42,{"v":255997549,"d":"255,997,549.00"},{"$nulls":4},{"v":89296001.79,"d":"89,296,001.79"},{"$nulls":4},{"v":0.34881584663140663,"d":"34.88%"}]
[null,"Употреба основних средстава",{"$nulls":16},43,{"$nulls":4},{"v":0,"d":"0.00"},{"$nulls":4},{"v":0,"d":"0.00"},{"$nulls":4},{"$f":"AC71/X71","v":{"$error":"#DIV/0!"}}]
[null,"3. Отплата камата","3. Отплата камата","3. Отплата камата","3. Отплата камата","3. Отплата камата","3. Отплата камата","3. Отплата камата","3. Отплата камата","3. Отплата камата","3. Отплата камата","3. Отплата камата","3. Отплата камата","3. Отплата камата","3. Отплата камата","3. Отплата камата","3. Отплата камата","3. Отплата камата",44,44,44,44,44,{"v":200000,"d":"200,000.00"},{"$nulls":4},{"v":33033.45,"d":"33,033.45"},{"$nulls":4},{"v":0.16516725,"d":"16.52%"}]
[null,"4. Субвенције","4. Субвенције","4. Субвенције","4. Субвенције","4. Субвенције","4. Субвенције","4. Субвенције","4. Субвенције","4. Субвенције","4. Субвенције","4. Субвенције","4. Субвенције","4. Субвенције","4. Субвенције","4. Субвенције","4. Субвенције","4. Субвенције",45,45,45,45,45,{"v":42969060,"d":"42,969,060.00"},{"$nulls":4},{"v":14581384.96,"d":"14,581,384.96"},{"$nulls":4},{"v":0.33934614720452344,"d":"33.93%"}]
[null,"5. Издаци за социјалну заштиту","5. Издаци за социјалну заштиту","5. Издаци за социјалну заштиту","5. Издаци за социјалну заштиту","5. Издаци за социјалну заштиту","5. Издаци за социјалну заштиту","5. Издаци за социјалну заштиту","5. Издаци за социјалну заштиту","5. Издаци за социјалну заштиту","5. Издаци за социјалну заштиту","5. Издаци за социјалну заштиту","5. Издаци за социјалну заштиту","5. Издаци за социјалну заштиту","5. Издаци за социјалну заштиту","5. Издаци за социјалну заштиту","5. Издаци за социјалну заштиту","5. Издаци за социјалну заштиту",47,47,47,47,47,{"v":56347718,"d":"56,347,718.00"},{"$nulls":4},{"v":32066409.53,"d":"32,066,409.53"},{"$nulls":4},{"v":0.5690808903743005,"d":"56.91%"}]
[null,"6. Остали расходи","6. Остали расходи","6. Остали расходи","6. Остали расходи","6. Остали расходи","6. Остали расходи","6. Остали расходи","6. Остали расходи","6. Остали расходи","6. Остали расходи","6. Остали расходи","6. Остали расходи","6. Остали расходи","6. Остали расходи","6. Остали расходи","6. Остали расходи","6. Остали расходи","48+49","48+49","48+49","48+49","48+49",{"v":34783848,"d":"34,783,848.00"},{"$nulls":4},{"v":13460167.25,"d":"13,460,167.25"},{"$nulls":4},{"v":0.38696602083817755,"d":"38.70%"}]
[null,"7. Трансфери и дотације","7. Текући трансфери и дотације","7. Текући трансфери и дотације","7. Текући трансфери и дотације","7. Текући трансфери и дотације","7. Текући трансфери и дотације","7. Текући трансфери и дотације","7. Текући трансфери и дотације","7. Текући трансфери и дотације","7. Текући трансфери и дотације","7. Текући трансфери и дотације","7. Текући трансфери и дотације","7. Текући трансфери и дотације","7. Текући трансфери и дотације","7. Текући трансфери и дотације","7. Текући трансфери и дотације","7. Текући трансфери и дотације","463+464","4631+4641","4631+4641","4631+4641","4631+4641",{"v":56200000,"d":"56,200,000.00"},{"$nulls":4},{"v":22197072.65,"d":"22,197,072.65"},{"$nulls":4},{"v":0.39496570551601423,"d":"39.50%"}]
[null,"8. Остале донације, дотације и трансфери",{"$nulls":16},465,{"$nulls":4},{"v":764842,"d":"764,842.00"},{"$nulls":4},{"v":10639.97,"d":"10,639.97"},{"$nulls":4},{"$f":"AC77/X77","v":{"v":0.013911330706211216,"d":"1.39%"}}]
[null,"Издаци за нефинансијску имовину","Издаци за нефинансијску имовину","Издаци за нефинансијску имовину","Издаци за нефинансијску имовину","Издаци за нефинансијску имовину","Издаци за нефинансијску имовину","Издаци за нефинансијску имовину","Издаци за нефинансијску имовину","Издаци за нефинансијску имовину","Издаци за нефинансијску имовину","Издаци за нефинансијску имовину","Издаци за нефинансијску имовину","Издаци за нефинансијску имовину","Издаци за нефинансијску имовину","Издаци за нефинансијску имовину","Издаци за нефинансијску имовину","Издаци за нефинансијску имовину",5,5,5,5,5,{"v":147755643,"d":"147,755,643.00"},{"$nulls":4},{"v":27581519.69,"d":"27,581,519.69"},{"$nulls":4},{"v":0.18666982275594038,"d":"18.67%"}]
[null,"III. БУЏЕТСКИ СУФИЦИТ (БУЏЕТСКИ ДЕФИЦИТ) (I–II)","III. БУЏЕТСКИ СУФИЦИТ (БУЏЕТСКИ ДЕФИЦИТ) (I–II)","III. БУЏЕТСКИ СУФИЦИТ (БУЏЕТСКИ ДЕФИЦИТ) (I–II)","III. БУЏЕТСКИ СУФИЦИТ (БУЏЕТСКИ ДЕФИЦИТ) (I–II)","III. БУЏЕТСКИ СУФИЦИТ (БУЏЕТСКИ ДЕФИЦИТ) (I–II)","III. БУЏЕТСКИ СУФИЦИТ (БУЏЕТСКИ ДЕФИЦИТ) (I–II)","III. БУЏЕТСКИ СУФИЦИТ (БУЏЕТСКИ ДЕФИЦИТ) (I–II)","III. БУЏЕТСКИ СУФИЦИТ (БУЏЕТСКИ ДЕФИЦИТ) (I–II)","III. БУЏЕТСКИ СУФИЦИТ (БУЏЕТСКИ ДЕФИЦИТ) (I–II)","III. БУЏЕТСКИ СУФИЦИТ (БУЏЕТСКИ ДЕФИЦИТ) (I–II)","III. БУЏЕТСКИ СУФИЦИТ (БУЏЕТСКИ ДЕФИЦИТ) (I–II)","III. БУЏЕТСКИ СУФИЦИТ (БУЏЕТСКИ ДЕФИЦИТ) (I–II)","III. БУЏЕТСКИ СУФИЦИТ (БУЏЕТСКИ ДЕФИЦИТ) (I–II)","III. БУЏЕТСКИ СУФИЦИТ (БУЏЕТСКИ ДЕФИЦИТ) (I–II)","III. БУЏЕТСКИ СУФИЦИТ (БУЏЕТСКИ ДЕФИЦИТ) (I–II)","III. БУЏЕТСКИ СУФИЦИТ (БУЏЕТСКИ ДЕФИЦИТ) (I–II)","III. БУЏЕТСКИ СУФИЦИТ (БУЏЕТСКИ ДЕФИЦИТ) (I–II)","(7+8) – (4+5)","(7+8) – (4+5)","(7+8) – (4+5)","(7+8) – (4+5)","(7+8) – (4+5)",{"$f":"X53-X67","v":{"v":-68945900,"d":"-68,945,900.00"}},{"$nulls":4},{"$f":"AC53-AC67","v":{"v":27594605.679999948,"d":"27,594,605.68"}},{"$nulls":4},{"v":-0.40023562938477775,"d":"-40.02%"}]
[null,"IV. Издаци за набавку финансијске имовине","IV. Издаци за набавку финансијске имовине","IV. Издаци за набавку финансијске имовине","IV. Издаци за набавку финансијске имовине","IV. Издаци за набавку финансијске имовине","IV. Издаци за набавку финансијске имовине","IV. Издаци за набавку финансијске имовине","IV. Издаци за набавку финансијске имовине","IV. Издаци за набавку финансијске имовине","IV. Издаци за набавку финансијске имовине","IV. Издаци за набавку финансијске имовине","IV. Издаци за набавку финансијске имовине","IV. Издаци за набавку финансијске имовине","IV. Издаци за набавку финансијске имовине","IV. Издаци за набавку финансијске имовине","IV. Издаци за набавку финансијске имовине","IV. Издаци за набавку финансијске имовине",62,62,62,62,62]
[null,"V. Отплата главнице","V. Отплата главнице","V. Отплата главнице","V. Отплата главнице","V. Отплата главнице","V. Отплата главнице","V. Отплата главнице","V. Отплата главнице","V. Отплата главнице","V. Отплата главнице","V. Отплата главнице","V. Отплата главнице","V. Отплата главнице","V. Отплата главнице","V. Отплата главнице","V. Отплата главнице","V. Отплата главнице",61,61,61,61,61,{"$f":"X82+X85","v":{"v":0,"d":"0.00"}},{"$nulls":4},{"$f":"AC82+AC85","v":{"v":0,"d":"0.00"}},{"$nulls":4},{"$f":"AC81/X81","v":{"$error":"#DIV/0!"}}]
[null,"1. Отплата главнице домаћим кредиторима","1. Отплата главнице домаћим кредиторима","1. Отплата главнице домаћим кредиторима","1. Отплата главнице домаћим кредиторима","1. Отплата главнице домаћим кредиторима","1. Отплата главнице домаћим кредиторима","1. Отплата главнице домаћим кредиторима","1. Отплата главнице домаћим кредиторима","1. Отплата главнице домаћим кредиторима","1. Отплата главнице домаћим кредиторима","1. Отплата главнице домаћим кредиторима","1. Отплата главнице домаћим кредиторима","1. Отплата главнице домаћим кредиторима","1. Отплата главнице домаћим кредиторима","1. Отплата главнице домаћим кредиторима","1. Отплата главнице домаћим кредиторима","1. Отплата главнице домаћим кредиторима",611,611,611,611,611,{"$f":"SUM(X83:AB84)","v":{"v":0,"d":"0.00"}},{"$nulls":4},{"$f":"SUM(AC83:AG84)","v":{"v":0,"d":"0.00"}},{"$nulls":4},{"$f":"AC82/X82","v":{"$error":"#DIV/0!"}}]
[null,"1.1. Отплата главнице домаћим јавним финансијским институцијама и пословним банкама","1.1. Отплата главнице домаћим јавним финансијским институцијама и пословним банкама","1.1. Отплата главнице домаћим јавним финансијским институцијама и пословним банкама","1.1. Отплата главнице домаћим јавним финансијским институцијама и пословним банкама","1.1. Отплата главнице домаћим јавним финансијским институцијама и пословним банкама","1.1. Отплата главнице домаћим јавним финансијским институцијама и пословним банкама","1.1. Отплата главнице домаћим јавним финансијским институцијама и пословним банкама","1.1. Отплата главнице домаћим јавним финансијским институцијама и пословним банкама","1.1. Отплата главнице домаћим јавним финансијским институцијама и пословним банкама","1.1. Отплата главнице домаћим јавним финансијским институцијама и пословним банкама","1.1. Отплата главнице домаћим јавним финансијским институцијама и пословним банкама","1.1. Отплата главнице домаћим јавним финансијским институцијама и пословним банкама","1.1. Отплата главнице домаћим јавним финансијским институцијама и пословним банкама","1.1. Отплата главнице домаћим јавним финансијским институцијама и пословним банкама","1.1. Отплата главнице домаћим јавним финансијским институцијама и пословним банкама","1.1. Отплата главнице домаћим јавним финансијским институцијама и пословним банкама","1.1. Отплата главнице домаћим јавним финансијским институцијама и пословним банкама","6113 + 6114","6113 + 6114","6113 + 6114","6113 + 6114","6113 + 6114",{"v":0,"d":"0.00"},{"$nulls":4},{"v":0,"d":"0.00"},{"$nulls":4},{"$f":"AC83/X83","v":{"$error":"#DIV/0!"}}]
[null,"1.2. Отплата главнице осталим кредиторима","1.2. Отплата главнице осталим кредиторима","1.2. Отплата главнице осталим кредиторима","1.2. Отплата главнице осталим кредиторима","1.2. Отплата главнице осталим кредиторима","1.2. Отплата главнице осталим кредиторима","1.2. Отплата главнице осталим кредиторима","1.2. Отплата главнице осталим кредиторима","1.2. Отплата главнице осталим кредиторима","1.2. Отплата главнице осталим кредиторима","1.2. Отплата главнице осталим кредиторима","1.2. Отплата главнице осталим кредиторима","1.2. Отплата главнице осталим кредиторима","1.2. Отплата главнице осталим кредиторима","1.2. Отплата главнице осталим кредиторима","1.2. Отплата главнице осталим кредиторима","1.2. Отплата главнице осталим кредиторима","6111 + 6112           + 6115 + 6116      + 6117 + 6118     + 6119","6111 + 6112 + 6115 + 6116 + 6117 + 6118 + 6119","6111 + 6112 + 6115 + 6116 + 6117 + 6118 + 6119","6111 + 6112 + 6115 + 6116 + 6117 + 6118 + 6119","6111 + 6112 + 6115 + 6116 + 6117 + 6118 + 6119",{"$nulls":10},{"$f":"'član 4'!E35","v":""}]
[null,"2. Отплата главнице страним кредиторима","2. Отплата главнице страним кредиторима","2. Отплата главнице страним кредиторима","2. Отплата главнице страним кредиторима","2. Отплата главнице страним кредиторима","2. Отплата главнице страним кредиторима","2. Отплата главнице страним кредиторима","2. Отплата главнице страним кредиторима","2. Отплата главнице страним кредиторима","2. Отплата главнице страним кредиторима","2. Отплата главнице страним кредиторима","2. Отплата главнице страним кредиторима","2. Отплата главнице страним кредиторима","2. Отплата главнице страним кредиторима","2. Отплата главнице страним кредиторима","2. Отплата главнице страним кредиторима","2. Отплата главнице страним кредиторима",612,612,612,612,612,{"$nulls":10},{"$f":"'član 4'!E36","v":""}]
[null,"Б. УКУПНИ ФИСКАЛНИ ДЕФИЦИТ (III-IV-V)","Б. УКУПНИ ФИСКАЛНИ ДЕФИЦИТ (III-IV-V)","Б. УКУПНИ ФИСКАЛНИ ДЕФИЦИТ (III-IV-V)","Б. УКУПНИ ФИСКАЛНИ ДЕФИЦИТ (III-IV-V)","Б. УКУПНИ ФИСКАЛНИ ДЕФИЦИТ (III-IV-V)","Б. УКУПНИ ФИСКАЛНИ ДЕФИЦИТ (III-IV-V)","Б. УКУПНИ ФИСКАЛНИ ДЕФИЦИТ (III-IV-V)","Б. УКУПНИ ФИСКАЛНИ ДЕФИЦИТ (III-IV-V)","Б. УКУПНИ ФИСКАЛНИ ДЕФИЦИТ (III-IV-V)","Б. УКУПНИ ФИСКАЛНИ ДЕФИЦИТ (III-IV-V)","Б. УКУПНИ ФИСКАЛНИ ДЕФИЦИТ (III-IV-V)","Б. УКУПНИ ФИСКАЛНИ ДЕФИЦИТ (III-IV-V)","Б. УКУПНИ ФИСКАЛНИ ДЕФИЦИТ (III-IV-V)","Б. УКУПНИ ФИСКАЛНИ ДЕФИЦИТ (III-IV-V)","Б. УКУПНИ ФИСКАЛНИ ДЕФИЦИТ (III-IV-V)","Б. УКУПНИ ФИСКАЛНИ ДЕФИЦИТ (III-IV-V)","Б. УКУПНИ ФИСКАЛНИ ДЕФИЦИТ (III-IV-V)",{"$nulls":5},{"$f":"X79-X80-X81","v":{"v":-68945900,"d":"-68,945,900.00"}},{"$nulls":4},{"$f":"AC79-AC80-AC81","v":{"v":27594605.679999948,"d":"27,594,605.68"}},{"$nulls":4},{"$f":"AC86/X86","v":{"v":-0.40023562938477775,"d":"-40.02%"}}]
[null,"В. РАЧУН ФИНАНСИРАЊА","В. РАЧУН ФИНАНСИРАЊА","В. РАЧУН ФИНАНСИРАЊА","В. РАЧУН ФИНАНСИРАЊА","В. РАЧУН ФИНАНСИРАЊА","В. РАЧУН ФИНАНСИРАЊА","В. РАЧУН ФИНАНСИРАЊА","В. РАЧУН ФИНАНСИРАЊА","В. РАЧУН ФИНАНСИРАЊА","В. РАЧУН ФИНАНСИРАЊА","В. РАЧУН ФИНАНСИРАЊА","В. РАЧУН ФИНАНСИРАЊА","В. РАЧУН ФИНАНСИРАЊА","В. РАЧУН ФИНАНСИРАЊА","В. РАЧУН ФИНАНСИРАЊА","В. РАЧУН ФИНАНСИРАЊА","В. РАЧУН ФИНАНСИРАЊА",{"$nulls":5},{"$f":"IF(OR(ISBLANK('član 4'!C38),'član 4'!C38=0),\"\",'član 4'!C38)","v":""},{"$nulls":4},{"$f":"IF(OR(ISBLANK('član 4'!D38),'član 4'!D38=0),\"\",'član 4'!D38)","v":""},{"$nulls":4},{"$f":"'član 4'!E38","v":""}]
[null,"VI. Примања по основу продаје финансијске имовине ","VI. Примања по основу продаје финансијске имовине ","VI. Примања по основу продаје финансијске имовине ","VI. Примања по основу продаје финансијске имовине ","VI. Примања по основу продаје финансијске имовине ","VI. Примања по основу продаје финансијске имовине ","VI. Примања по основу продаје финансијске имовине ","VI. Примања по основу продаје финансијске имовине ","VI. Примања по основу продаје финансијске имовине ","VI. Примања по основу продаје финансијске имовине ","VI. Примања по основу продаје финансијске имовине ","VI. Примања по основу продаје финансијске имовине ","VI. Примања по основу продаје финансијске имовине ","VI. Примања по основу продаје финансијске имовине ","VI. Примања по основу продаје финансијске имовине ","VI. Примања по основу продаје финансијске имовине ","VI. Примања по основу продаје финансијске имовине ",92,92,92,92,92,{"$nulls":10},{"$f":"'član 4'!E39","v":""}]
[null,"VII. Примања од задуживања","VII. Примања од задуживања","VII. Примања од задуживања","VII. Примања од задуживања","VII. Примања од задуживања","VII. Примања од задуживања","VII. Примања од задуживања","VII. Примања од задуживања","VII. Примања од задуживања","VII. Примања од задуживања","VII. Примања од задуживања","VII. Примања од задуживања","VII. Примања од задуживања","VII. Примања од задуживања","VII. Примања од задуживања","VII. Примања од задуживања","VII. Примања од задуживања",91,91,91,91,91,{"$f":"SUM(X90)","v":{"v":0,"d":"0.00"}},{"$nulls":4},{"$f":"SUM(AC90)","v":{"v":0,"d":"0.00"}},{"$nulls":4},{"$f":"'član 4'!E40","v":""}]
[null,"1. Примања од домаћих задуживања","1. Примања од домаћих задуживања","1. Примања од домаћих задуживања","1. Примања од домаћих задуживања","1. Примања од домаћих задуживања","1. Примања од домаћих задуживања","1. Примања од домаћих задуживања","1. Примања од домаћих задуживања","1. Примања од домаћих задуживања","1. Примања од домаћих задуживања","1. Примања од домаћих задуживања","1. Примања од домаћих задуживања","1. Примања од домаћих задуживања","1. Примања од домаћих задуживања","1. Примања од домаћих задуживања","1. Примања од домаћих задуживања","1. Примања од домаћих задуживања",911,911,911,911,911,{"$f":"SUM(X91:AB92)","v":{"v":0,"d":"0.00"}},{"$nulls":4},{"$f":"SUM(AC91:AG92)","v":{"v":0,"d":"0.00"}},{"$nulls":4},{"$f":"'član 4'!E41","v":""}]
[null,"1.1. Задуживање код јавних финансијских институција и пословних банака","1.1. Задуживање код јавних финансијских институција и пословних банака","1.1. Задуживање код јавних финансијских институција и пословних банака","1.1. Задуживање код јавних финансијских институција и пословних банака","1.1. Задуживање код јавних финансијских институција и пословних банака","1.1. Задуживање код јавних финансијских институција и пословних банака","1.1. Задуживање код јавних финансијских институција и пословних банака","1.1. Задуживање код јавних финансијских институција и пословних банака","1.1. Задуживање код јавних финансијских институција и пословних банака","1.1. Задуживање код јавних финансијских институција и пословних банака","1.1. Задуживање код јавних финансијских институција и пословних банака","1.1. Задуживање код јавних финансијских институција и пословних банака","1.1. Задуживање код јавних финансијских институција и пословних банака","1.1. Задуживање код јавних финансијских институција и пословних банака","1.1. Задуживање код јавних финансијских институција и пословних банака","1.1. Задуживање код јавних финансијских институција и пословних банака","1.1. Задуживање код јавних финансијских институција и пословних банака","9113 + 9114","9113 + 9114","9113 + 9114","9113 + 9114","9113 + 9114",{"$nulls":10},{"$f":"'član 4'!E42","v":""}]
[null,"1.2. Задуживање код осталих кредитора","1.2. Задуживање код осталих кредитора","1.2. Задуживање код осталих кредитора","1.2. Задуживање код осталих кредитора","1.2. Задуживање код осталих кредитора","1.2. Задуживање код осталих кредитора","1.2. Задуживање код осталих кредитора","1.2. Задуживање код осталих кредитора","1.2. Задуживање код осталих кредитора","1.2. Задуживање код осталих кредитора","1.2. Задуживање код осталих кредитора","1.2. Задуживање код осталих кредитора","1.2. Задуживање код осталих кредитора","1.2. Задуживање код осталих кредитора","1.2. Задуживање код осталих кредитора","1.2. Задуживање код осталих кредитора","1.2. Задуживање код осталих кредитора","9111 + 9112 + 9115 + 9116 + 9117 + 9118 + 9119","9111 + 9112 + 9115 + 9116 + 9117 + 9118 + 9119","9111 + 9112 + 9115 + 9116 + 9117 + 9118 + 9119","9111 + 9112 + 9115 + 9116 + 9117 + 9118 + 9119","9111 + 9112 + 9115 + 9116 + 9117 + 9118 + 9119",{"$f":"IF(OR(ISBLANK('član 4'!C43),'član 4'!C43=0),\"\",'član 4'!C43)","v":""},{"$nulls":4},{"$f":"IF(OR(ISBLANK('član 4'!D43),'član 4'!D43=0),\"\",'član 4'!D43)","v":""},{"$nulls":4},{"$f":"'član 4'!E43","v":""}]
[null,"2. Примања од иностраног задуживања","2. Примања од иностраног задуживања","2. Примања од иностраног задуживања","2. Примања од иностраног задуживања","2. Примања од иностраног задуживања","2. Примања од иностраног задуживања","2. Примања од иностраног задуживања","2. Примања од иностраног задуживања","2. Примања од иностраног задуживања","2. Примања од иностраног задуживања","2. Примања од иностраног задуживања","2. Примања од иностраног задуживања","2. Примања од иностраног задуживања","2. Примања од иностраног задуживања","2. Примања од иностраног задуживања","2. Примања од иностраног задуживања","2. Примања од иностраног задуживања",912,912,912,912,912,{"$f":"IF(OR(ISBLANK('član 4'!C44),'član 4'!C44=0),\"\",'član 4'!C44)","v":""},{"$nulls":4},{"$f":"IF(OR(ISBLANK('član 4'!D44),'član 4'!D44=0),\"\",'član 4'!D44)","v":""},{"$nulls":4},{"$f":"'član 4'!E44","v":""}]
[null,"VIII. ПРЕНЕТА СРЕДСТВА ИЗ ПРЕТХОДНЕ ГОДИНЕ","VIII. НЕТО ФИНАНСИРАЊЕ (IV+V)","VIII. НЕТО ФИНАНСИРАЊЕ (IV+V)","VIII. НЕТО ФИНАНСИРАЊЕ (IV+V)","VIII. НЕТО ФИНАНСИРАЊЕ (IV+V)","VIII. НЕТО ФИНАНСИРАЊЕ (IV+V)","VIII. НЕТО ФИНАНСИРАЊЕ (IV+V)","VIII. НЕТО ФИНАНСИРАЊЕ (IV+V)","VIII. НЕТО ФИНАНСИРАЊЕ (IV+V)","VIII. НЕТО ФИНАНСИРАЊЕ (IV+V)","VIII. НЕТО ФИНАНСИРАЊЕ (IV+V)","VIII. НЕТО ФИНАНСИРАЊЕ (IV+V)","VIII. НЕТО ФИНАНСИРАЊЕ (IV+V)","VIII. НЕТО ФИНАНСИРАЊЕ (IV+V)","VIII. НЕТО ФИНАНСИРАЊЕ (IV+V)","VIII. НЕТО ФИНАНСИРАЊЕ (IV+V)","VIII. НЕТО ФИНАНСИРАЊЕ (IV+V)","321311+311712",{"$nulls":4},{"v":68945900,"d":"68,945,900.00"},{"$nulls":4},{"v":24738131.19,"d":"24,738,131.19"},{"$nulls":4},{"$f":"AC94/X94","v":{"v":0.35880496432710285,"d":"35.88%"}}]
[null,"IX. НЕТО ФИНАНСИРАЊЕ (VI+VIII-V)","VIII. НЕТО ФИНАНСИРАЊЕ (IV+V)","VIII. НЕТО ФИНАНСИРАЊЕ (IV+V)","VIII. НЕТО ФИНАНСИРАЊЕ (IV+V)","VIII. НЕТО ФИНАНСИРАЊЕ (IV+V)","VIII. НЕТО ФИНАНСИРАЊЕ (IV+V)","VIII. НЕТО ФИНАНСИРАЊЕ (IV+V)","VIII. НЕТО ФИНАНСИРАЊЕ (IV+V)","VIII. НЕТО ФИНАНСИРАЊЕ (IV+V)","VIII. НЕТО ФИНАНСИРАЊЕ (IV+V)","VIII. НЕТО ФИНАНСИРАЊЕ (IV+V)","VIII. НЕТО ФИНАНСИРАЊЕ (IV+V)","VIII. НЕТО ФИНАНСИРАЊЕ (IV+V)","VIII. НЕТО ФИНАНСИРАЊЕ (IV+V)","VIII. НЕТО ФИНАНСИРАЊЕ (IV+V)","VIII. НЕТО ФИНАНСИРАЊЕ (IV+V)","VIII. НЕТО ФИНАНСИРАЊЕ (IV+V)",{"$nulls":5},{"$f":"X89+X94-X81","v":{"v":68945900,"d":"68,945,900.00"}},{"$nulls":4},{"$f":"AC89+AC94-AC81","v":{"v":24738131.19,"d":"24,738,131.19"}},{"$nulls":4},{"$f":"AC95/X95","v":{"v":0.35880496432710285,"d":"35.88%"}}]
[]
[]
[]
[null,"      У периоду од 1. јануара до 30. јуна 2025. године, утврђенa су примања по свим изворима финансирања (класа 800000 и 900000) у износу од 490.730,00 динара и укупни издаци (класа 500000 и 600000) у износу од 27.581.519,69 динара."]
[]
[]
[]
[]
[null,"      У периоду од 1. јануара до 30. јуна 2025. године, утврђенa су укупни консолидовани новчани приливи у износу од 319.219.257,83 динара."]
[]
[]
[]
[null,"      У периоду од 1. јануара до 30. јуна 2025. године, утврђени су укупни консолидовани новчани одливи у износу од 291.624.652,15 динара."]
[]
[null,"      Разлике одлива (расхода и издатака) који су евидентирани у главној књизи трезора и одлива (расхода и издатака) Индиректних корисника су евидентиране у поступку усаглашавања извршења буџета општине Владимирци (евиденције главне књиге трезора) и извршења финансијских планова Индиректних корисника. Разлике у извршењима, односно мање извршење расхода и издатака - мањак новчаних одлива са подрачуна Индиректних корисника у односу на пренета средства са рачуна Буџета општине Владимирци су резултирала повећањем салда на подрачунима Индиректних корисника у оквиру консолидованог рачуна трезора. О усаглашавању извршења буџета и извршења Индиректних корисника сачињени су записници који су архивирани у Одсеку за трезор и буџетско рачуноводство општине Владимирци и на основу истих је сачињено консолидовано извршење буџета општине Владимирци у периоду 01.01. - 30.06.2025. године."]
[]
[null,"      У периоду 01.01. - 30.06.2025. године обрачун салда готовине је утврђен на следећи начин:"]
[]
[{"$nulls":29},"У динарима"]
[null,null,"I      Салдо готовине на подрачунима корисника у оквиру Консолидованог рачуна трезора општине Владимирци на дан 01.01.2025. године:",{"$nulls":23},{"v":67271715.44,"d":"67,271,715.44"}]
[null,null,"II     Приливи новчаних средстава у периоду 01.01. - 30.06.2025. године:",{"$nulls":23},{"v":319219257.83,"d":"319,219,257.83"}]
[null,null,"III    Одливи новчаних средстава у периоду 01.01. - 30.06.2025. године:",{"$nulls":23},{"v":291624652.15,"d":"291,624,652.15"}]
[null,null,"IV    Салдо готовине на подрачунима корисника у оквиру Консолидованог рачуна трезора општине Владимирци на дан 30.06.2025. године (I+II-III)",{"$nulls":23},{"$f":"AA115+AA116-AA117","v":{"v":94866321.12,"d":"94,866,321.12"}}]
[]
[null,"       Структура износа салда готовине од 94.866.321,12 динара 30.06.2025. године по подрачунима који улазе у консолидацију корисника у оквиру консолидованог рачуна трезора Владимирци:"]
[]
[null,"Рачун за извршење буџета општине Владимирци",{"$nulls":24},{"v":94477462.15,"d":"94,477,462.15"}]
[null,"Унопс SWISS-PRO Владимирци - нам.сред.од донација 2020",{"$nulls":24},{"v":0,"d":"0.00"}]
[null,"Општинска Управа - Пројекат ЕЦЕЦ инклузивно образовање",{"$nulls":24},{"v":0,"d":"0.00"}]
[null,"Подрачун наменска средства дечија недеља",{"$nulls":24},{"v":0,"d":"0.00"}]
[null,"Библиотека ,,Диша Атић\" Владимирци",{"$nulls":24},{"v":81638.45,"d":"81,638.45"}]
[null,"Библиотека ,,Диша Атић\" - подрачун сопствени приходи",{"$nulls":24},{"v":0,"d":"0.00"}]
[null,"Збирно подрачуни Месних Заједница општине Владимирци",{"$nulls":24},{"v":28886.11,"d":"28,886.11"}]
[null,"Туристичка организација општине Владимирци",{"$nulls":24},{"v":1826.36,"d":"1,826.36"}]
[null,"ПУ ,,Сунцокрети\" Владимирци",{"$nulls":24},{"v":276508.05,"d":"276,508.05"}]
[null,"ПУ ,,Сунцокрети\" - подрачун Ђачки динар",{"$nulls":24},{"v":0,"d":"0.00"}]
[null,"ПУ ,,Сунцокрети\" - пројекат ЕЦЕЦ инклузивно образовање",{"$nulls":24},{"v":0,"d":"0.00"}]
[null,"УКУПНО:",{"$nulls":24},{"$f":"SUM(AA122:AI132)","v":{"v":94866321.12,"d":"94,866,321.12"}}]
[]
[null,"     Стање салда готовине од 94.866.321,12 динара чини 42.533.584,25 динара пренетих средстава из претходне године која нису утрошена и 52.332.736,87 динара утврђеног суфицита на начин описан у претходном делу овог Закључка."]
[]
[null,"     У Извештају о извршењу буџета у периоду 1. јануара до 30. јун 2021. године (Образац 5), утврђена је позитивна разлика  (суфицит) у износу од 52.202 хиљада динара, између укупних текућих прихода и примања и укупних расхода и издатака. Извештају о извршењу буџета у периоду 1. јануара до 30. јун 2021. године (Образац 5) састављена на основу консолидованих података о извршењима директних корисника Буџета општине Владимирци и саставни је део овог Закључка."]
[]
[]
[]
[]
[]
[]
[null,"I. ПОСЕБАН ДЕО"]
[]
[]
[null,"       Преглед текућих расхода и издатака по организационој, програмској, функционалној и економској класификацији сви по изворима финансирања, као и преглед остварења прихода по изворима финансирања за период 01.01 – 30.06. 2025. године дати су у прилогу и саставни су део овог Закључка."]
{"$rows_empty":17}
[null,"       Извештаји о коришћењу средстава из текуће и сталне буџетске резерве за период 01.01. - 30.06.2025. године, Извештај о донацијама за период 01.01. - 30.06.2025. године, Извештај о кредитном задужењу за период 01.01. - 30.06.2025. године и Извештај о примљеним и датим донацијама за период 01.01. - 30.06.2025. године  саставни су делови овог Закључка."]
[]
[]
[]
[]
[]
[null,"Члан 11."]
[null,"      Закључак о усвајању извршењу буџета општине Владимирци доставити Управи за трезор, по усвајању."]
[]
[]
[null,"Члан 12."]
[null,"      Овај Закључак објавити у „Службеном листу града Шапца и општина: Богатић, Владимирци и Коцељева”. "]
[]
[]
[]
[]
[null,"СКУПШТИНА ОПШТИНЕ ВЛАДИМИРЦИ\n\n"]
[null,"Број: 004523968 2025 07936 001 000 401 118  од  14.11.2025. године"]
[]
[{"$nulls":23},"ПРЕДСЕДНИК\nСКУПШТИНЕ"]
[]
[]
[{"$nulls":23},"________________________"]
[{"$nulls":25},"Раде Ковачевић"]

{"sheet":"Sheet1","index":7,"n_rows":0,"n_cols":0,"rows_kept":0}